{"text_format":"1","workbook":"xlsx","n_sheets":3,"sheets":["FORMULARIO","BDD","CONSOLIDADO"],"not_rendered":{"charts":0,"images":1,"macros":1,"external_links":0,"defined_names":354,"comments":0,"pivot_tables":0},"unopened":[],"bounds":{"document_bytes":16777216,"sheet_cells":100000,"rows_first":2000,"rows_last":500,"rows_between":2000,"halvings":0,"cell_chars":16384,"cell_head_chars":4096},"cells_cut":0,"cells_raw":0,"read":"whole","date_system":"1900"}

{"sheet":"FORMULARIO","index":0,"n_rows":146,"n_cols":26,"rows_kept":146,"cut":false,"hidden":false,"merged":[[105,2,105,14],[16,14,16,18],[16,1,16,13],[18,2,18,7],[38,2,38,8],[39,2,41,8],[34,2,34,8],[38,10,38,17],[36,10,36,17],[24,1,24,12],[26,1,26,12],[28,1,28,12],[34,11,34,17],[24,14,31,18],[40,10,41,18],[45,1,45,19],[30,1,30,12],[57,1,57,19],[48,2,48,8],[48,9,48,15],[48,16,48,18],[92,2,92,7],[144,0,144,20],[145,0,145,20],[4,2,4,5],[13,2,13,8],[13,9,13,18],[9,16,9,18],[1,8,2,19],[5,7,5,8],[4,7,4,8],[5,9,5,18],[4,9,4,18],[8,16,8,18],[9,2,9,8],[5,2,5,5],[9,9,9,15],[8,2,8,8],[8,9,8,15],[44,2,44,8],[22,1,22,19],[32,2,32,18],[47,2,47,8],[47,9,47,15],[126,17,126,18],[127,17,127,18],[77,2,77,17],[47,16,47,18],[36,2,36,8],[51,6,51,8],[51,9,51,10],[50,5,50,10],[50,11,51,14],[50,15,51,18],[51,2,51,3],[52,2,52,3],[52,6,52,8],[52,9,52,10],[59,9,59,12],[59,2,59,7],[59,14,59,18],[76,2,76,17],[52,11,53,19],[55,2,55,8],[55,9,55,13],[55,14,55,18],[54,2,54,8],[54,9,54,13],[54,14,54,18],[62,2,62,9],[62,11,62,18],[72,2,73,17],[74,2,74,17],[67,2,67,6],[67,7,67,18],[70,2,70,8],[61,2,61,18],[63,2,63,9],[63,11,63,18],[65,2,65,8],[65,9,65,18],[110,2,110,8],[110,9,110,19],[111,1,111,19],[107,2,107,18],[112,2,113,17],[18,8,18,10],[105,16,105,18],[93,9,93,15],[93,16,93,18],[94,2,94,8],[94,9,94,15],[94,16,94,18],[93,2,93,8],[80,1,80,7],[80,8,80,18],[86,2,86,18],[102,2,102,8],[102,9,102,19],[104,2,104,8],[97,11,97,13],[97,16,97,18],[96,16,96,19],[97,2,97,3],[78,1,78,19],[142,2,142,8],[142,12,142,18],[143,3,143,6],[143,13,143,16],[138,2,139,17],[114,1,114,19],[119,1,119,19],[117,1,118,17],[121,1,122,17],[123,1,123,19],[134,2,135,17],[136,2,137,17],[116,1,116,19],[129,1,129,19],[133,1,133,19],[130,2,131,17],[124,1,124,19],[127,2,127,4],[126,2,126,4],[126,6,126,8],[127,6,127,8],[126,10,127,11],[126,13,127,14],[18,11,20,18],[96,11,96,13],[97,7,97,8],[96,7,96,8],[99,2,99,5],[99,6,99,18],[104,16,104,18],[82,2,82,7],[82,9,82,12],[82,14,82,18],[83,2,83,7],[83,9,83,12],[83,14,83,18],[88,2,88,8],[88,9,88,15],[88,16,88,18],[89,9,89,15],[89,16,89,18],[89,2,89,8],[58,2,58,7],[58,9,58,12],[58,14,58,18],[60,2,60,18]]}
[]
[null,null,null,null,null,null,null,null,"FORMULARIO DE INSCRIPCIÓN PARA ASPIRANTES\nPROGRAMA BÁSICA SUPERIOR FLEXIBLE",null,null,null,null,null,null,null,null,null,null,null,null,null,"Educación Inicial - Grupo de 3 años",1095,1460,{"$f":"IF(AND($W$5>=X2,$W$5<=Y2),\"SI\",\"NO\")","v":{"$error":"#N/A"}}]
[null,null,null,null,null,null,null,null,null,null,null,null,null,null,null,null,null,null,null,null,null,null,"Educación Inicial - Grupo de 4 años",1461,1825,{"$f":"IF(AND($W$5>=X3,$W$5<=Y3),\"SI\",\"NO\")","v":{"$error":"#N/A"}}]
[null,null,null,null,null,null,null,null,null,null,null,null,null,null,null,null,null,null,null,null,null,null,"1ero. de EGB",1826,null,{"$f":"IF($W$5>=X4,\"SI\",\"NO\")","v":{"$error":"#N/A"}}]
[null,null,"Fecha:",null,null,null,"Zona:","Distrito:",null,"Sede de inscripción:",null,null,null,null,null,null,null,null,null,null,null,null,{"$f":"IF(OR(J14=\"Educación Inicial - Grupo de 3 años\",J14=\"Educación Inicial - Grupo de 4 años\"),\"04/05/2015\",IF(J14=\"1ero. de EGB\",\"31/08/2015\",TODAY()))-DATE(ANO_NAC_ASP,VLOOKUP(MES_NAC_ASP,BUSCAR_MESES,2,FALSE),DIA_NAC_ASP)","v":{"$error":"#N/A"}}]
[null,null,{"$f":"NOW()","v":"2015-03-09T19:15:50.120"}]
[]
[null,"Datos del operador:"]
[null,null,"Apellidos:",null,null,null,null,null,null,"Nombres:",null,null,null,null,null,null,"Cédula:"]
[]
[]
[]
[]
[null,null,"Sección A: Tipo de inscripción",null,null,null,null,null,null,"Reinserción"]
[]
[]
[null,"¿Cuántos aspirantes desea inscribir en el sistema educativo fiscal?",null,null,null,null,null,null,null,null,null,null,null,null,"Solamente un aspirante"]
[]
[null,{"$f":"IF(CUANTOS_ASPIRANTES=\"Varios aspirantes (hermanos)\",\"Ha seleccionado Varios aspirantes (hermanos), complete un formulario por cada aspirante y grape todos los formularios juntos.\",\"\")","v":""},"Ultimo año escolar aprobado:",null,null,null,null,null,null,null,null,{"$f":"IF(ANO_ESC_TRASLADO=\"\",\"\",\"Nota: El aspirante se inscribe a un sistema que contempla la culminación de sus estudios en 11 meses\")","v":""}]
[]
[]
[]
[null,"Conteste lo siguiente:"]
[]
[null,"¿El aspirante tiene una NECESIDAD EDUCATIVA ESPECIAL con discapacidad?",null,null,null,null,null,null,null,null,null,null,null,"No","Revisar la sección F, si contesta \"Si\" en alguna pregunta"]
[]
[null,"¿El aspirante tiene condición de REFUGIADO?",null,null,null,null,null,null,null,null,null,null,null,"No"]
[]
[null,"¿El aspirante tiene condición una ENFERMEDAD CATASTRÓFICA?",null,null,null,null,null,null,null,null,null,null,null,"No"]
[]
[null,"¿El aspirante es EXTRANJERO?",null,null,null,null,null,null,null,null,null,null,null,"No"]
[]
[null,null,"Otros tipos de vulnerabilidad:"]
[]
[null,null,"Violencia sexual, física y psicológica",null,null,null,null,null,null,"No",null,"Hijos de migrantes con necesidad de protección",null,null,null,null,null,null,"No"]
[]
[null,null,"Explotación laboral y económica",null,null,null,null,null,null,"No","Hijos de personas privadas de libertad",null,null,null,null,null,null,null,"No"]
[]
[null,null,"Trata y tráfico de personas",null,null,null,null,null,null,"No","Menores en condiciones de embarazo",null,null,null,null,null,null,null,"No"]
[null,null,"Menores infractores o personas privadas de libertad"]
[null,null,null,null,null,null,null,null,null,null,"Revisar la sección F,\"VULNERABILIDAD\"\nsi contesta \"Si\" en alguna pregunta"]
[null,null,null,null,null,null,null,null,null,"No"]
[]
[]
[null,null,"Sección B: Aspirante"]
[null,"Datos del aspirante:"]
[]
[null,null,"Apellidos:",null,null,null,null,null,null,"Nombres:",null,null,null,null,null,null,{"$f":"IF(OR(TIPOS_INSCRIPCION=\"Migración\",VUL_4=\"Si\"),\"Cédula o Pasaporte:\",\"Cédula:\")","v":"Cédula:"}]
[]
[]
[null,null,null,null,null,"Fecha de nacimiento:",null,null,null,null,null,"Edad al 30 de abril de 2015:",null,null,null,{"$f":"IFERROR(DATEDIF(DATE(ANO_NAC_ASP,VLOOKUP(MES_NAC_ASP,BUSCAR_MESES,2,FALSE),DIA_NAC_ASP),\"30/04/2015\",\"Y\") & \" años \" & DATEDIF(DATE(ANO_NAC_ASP,VLOOKUP(MES_NAC_ASP,BUSCAR_MESES,2,FALSE),DIA_NAC_ASP),\"30/04/2015\",\"ym\") & \" meses \" & DATEDIF(DATE(ANO_NAC_ASP,VLOOKUP(MES_NAC_ASP,BUSCAR_MESES,2,FALSE),DIA_NAC_ASP),\"30/04/2015\",\"md\") & \" días \",\"\")","v":""}]
[null,null,"Género:",null,null,"Día:","Mes:",null,null,"Año:"]
[null,null,null,null,null,null,null,null,null,null,null,{"$f":"IFERROR(CONCATENATE(\"El aspirante \",IF(AND(DATEDIF(DATE(ANO_NAC_ASP,VLOOKUP(MES_NAC_ASP,BUSCAR_MESES,2,FALSE),DIA_NAC_ASP),\"30/04/2015\",\"Y\")>=15,DATEDIF(DATE(ANO_NAC_ASP,VLOOKUP(MES_NAC_ASP,BUSCAR_MESES,2,FALSE),DIA_NAC_ASP),\"30/04/2015\",\"Y\")<=21),\"SI\",\"NO\"),\" puede inscribirse al programa\"),\"\")","v":""}]
[]
[null,null,"Dirección de correo electrónico:",null,null,null,null,null,null,"Nro. de teléfono convencional:",null,null,null,null,"Nro. de teléfono celular:"]
[]
[]
[null,"Dirección de la vivienda del aspirante"]
[null,null,"Provincia:",null,null,null,null,null,null,"Cantón:",null,null,null,null,"Parroquia:"]
[]
[null,null,"Dirección completa:"]
[]
[null,null,"Referencia:",null,null,null,null,null,null,null,null,"Sitios de interés:"]
[]
[]
[null,null,"Código Único Eléctrico Nacional:"]
[]
[null,null,"Localidad (si es área rural):"]
[]
[]
[null,null,"Sección C: Hermanos"]
[]
[null,null,"¿El aspirante que desea inscribir tiene un hermano o hermana que estudia actualmente en el sistema educativo fiscal?                                     "]
[null,null,null,null,null,null,null,null,null,null,null,null,null,null,null,null,null,null,"No"]
[null,null,"Si la respuesta es SI, pase al siguiente literal. Si la respuesta es NO pase a la sección D"]
[]
[null,null,"¿Desea que el aspirante se inscriba en la misma INSTITUCIÓN EDUCATIVA de su hermano o hermana?                            ",null,null,null,null,null,null,null,null,null,null,null,null,null,null,null,"No"]
[null,null,"Si la respuesta es SI pase al siguiente literal, si la respuesta es NO pase a la sección D"]
[null,"Datos del hermano que estudia en una institución educativa fiscal:"]
[]
[null,"Institución Educativa Fiscal (actual):"]
[]
[null,null,"Provincia:",null,null,null,null,null,null,"Cantón:",null,null,null,null,"Parroquia:"]
[]
[]
[null,null,"Dirección de la Institución Educativa:"]
[]
[]
[null,null,"Apellidos del hermano:",null,null,null,null,null,null,"Nombres del hermano:",null,null,null,null,null,null,"Cédula del hermano:"]
[]
[]
[]
[null,null,"Sección D: Datos del representante"]
[null,null,"Apellidos:",null,null,null,null,null,null,"Nombres:",null,null,null,null,null,null,"Cédula:"]
[]
[]
[null,null,"Parentesco:",null,null,null,null,"Género:",null,null,null,"Número celular:",null,null,null,null,"Tlfno. convencional:"]
[]
[]
[null,null,"Correo electrónico:"]
[]
[]
[null,null,"Sección E: Traslados",null,null,null,null,null,null,"(Llenar solamente si el tipo de inscripción (Sección A) es \"Traslados\")"]
[]
[null,null,"Institución Educativa (actual):",null,null,null,null,null,null,null,null,null,null,null,null,null,"Sostenimiento de la I. E. actual:"]
[]
[null,null,"Dirección de la Institución Educativa actual:"]
[]
[]
[]
[null,null,"Sección E: Casos excepcionales"]
[null,"MIGRACIÓN O REFUGIADOS"]
[null,null,"El aspirante presenta documentos legalizados o apostillados: certificado de pase de año escolar o última libreta de calificaciones"]
[]
[null,"NOTA: SI el estudiante NO presenta documentos legalizados o NO tiene documentos de estudios realizados previamente, tendrá que rendir un examen de ubicación en un laboratorio de una Institución Educativa (IE) de su distrito de residencia. En la página web http://juntos.educacion.gob.ec podrá consultar la IE y horario en el que deberá rendir el examen. "]
[]
[null,"REINSERCIÓN"]
[null,"El aspirante cursó en alguno de los países que tienen convenios establecidos con el Ecuador como por ejemplo, el convenio Andrés Bello , en: Argentina, Bolivia, Chile, Colombia, México, Cuba, España, Panamá, Paraguay, Perú y Venezuela"]
[]
[null,"NOTA: Si el país de procedencia donde el aspirante cursó su último año escolar NO proviene de uno de los países del convenio Andrés Bello, el aspirante deberá traer sus documentos legalizados. Si no los tiene, tendrá que rendir un exámen de ubicación en un laboratorio de una IE de su distrito de residencia. En la página web: http://juntos.educacion.gob.ec podrá consultar la IE y horario en el que deberá rendir el examen. "]
[]
[null,"El aspirante presenta documentos legalizados: certificado de pase de año escolar o última libreta de calificaciones"]
[]
[null,"NOTA: SI el aspirante NO presenta documentos legalizados o NO tiene documentos de estudios realizados previamente, tendrá que rendir un examen de ubicación en un laboratorio de una IE de su distrito. En la página web: http://juntos.educacion.gob.ec podrá consultar la IE y horario en el que deberá rendir el examen. "]
[null,"Información adicional para casos de Reinserción:"]
[]
[null,null,"Estado civil:",null,null,null,"Trabajo:",null,null,null,"Afiliación IESS:",null,null,"Cargas familiares:",null,null,null,"Nro. de cargas:"]
[]
[]
[null,"EDUCACIÓN ESPECIAL E INCLUSIVA"]
[null,null,"El aspirante deberá ser evaluado por profesionales de educación en los lugares establecidos por el nivel de gestión zonal (UDAI)"]
[]
[]
[null,"VULNERABILIDAD"]
[null,null,"El aspirante presenta una enfermedad catastrófica, deberá acercarse a la UDAI más cercana a su distrito, para ser atendido por profesionales."]
[]
[null,null,"El aspirante presenta documentos que demuestren que tiene sustentos suficientes para que no esté en una institución educativa específica."]
[]
[null,null,"El aspirante participó en un programa de protección de testigos y no quiere que se publiquen los resultados."]
[]
[]
[]
[null,null,"Firma operador",null,null,null,null,null,null,null,null,null,"Firma del representante / el que se inscribe"]
[null,null,"CI:",{"$f":"IF(CEDULA_OPERADOR=\"\",\"\",CEDULA_OPERADOR)","v":""},null,null,null,null,null,null,null,null,"CI:"]
["Nota de descargo: El Ministerio de Educación, realizará la asignaciónde estudiantes a instituciones educativas tomando en cuenta el circuito de residencia del aspirante.\nEl/La registrante declara tener poder/autorización suficiente para realizar el presente registro y establecer que la información que este documento contiene es veraz, por lo que asumirá la responsabilidad y obligaciones que por efecto de este proceso se generen."]
[{"$f":"IF(VUL_1=\"Si\",\"Observación: El aspirante debe acercarse a la Unidad Distrital de Apoyo a la Inclusión (UDAI) para realizar una entrevista y evaluación pedagógica. Solicitar el listado de las UDAIs de su zona en la sede de inscripción.\",\"\")","v":""}]

{"sheet":"BDD","index":1,"n_rows":1471,"n_cols":17,"rows_kept":1471,"cut":false,"hidden":true,"merged":[]}
[null,null,"DIAS",null,"MESES",null,null,"AÑOS",null,null,"zonas","ZONAS","ELIJA UNA ZONA",null,"PR_AZUAY",null,"PR_AZUAY_CAMILO_PONCE_ENRIQUEZ"]
[null,"SELECCIONE UN TIPO DE INSCRIPCIÓN",1,null,"enero",1,null,2012,{"$f":"2015-H2","v":3},null,1,1,"ZONA 1",null,"CAMILO PONCE ENRIQUEZ",null,"CAMILO PONCE ENRIQUEZ"]
[null,null,2,null,"febrero",2,null,2011,{"$f":"2015-H3","v":4},null,2,1,"04D01",null,"CHORDELEG",null,"EL CARMEN DE PIJILI"]
[null,null,3,null,"marzo",3,null,2010,5,null,3,1,"04D02",null,"CUENCA"]
[null,null,4,null,"abril",4,null,2009,6,null,4,1,"04D03",null,"EL PAN",null,"PR_AZUAY_CHORDELEG"]
[null,"Traslado de particular,fiscomisional o municipal a fiscal",5,null,"mayo",5,null,2008,7,null,5,1,"08D01",null,"GIRON",null,"CHORDELEG"]
[null,"Migración",6,null,"junio",6,null,2007,8,null,6,1,"08D02",null,"GUACHAPALA",null,"LA UNION"]
[null,"Reinserción",7,null,"julio",7,null,2006,9,null,7,1,"08D03",null,"GUALACEO",null,"LUIS GALARZA ORELLANA"]
[null,null,8,null,"agosto",8,null,2005,10,null,8,1,"08D04",null,"NABON",null,"PRINCIPAL"]
[null,"Si",9,null,"septiembre",9,null,2004,11,null,9,2,"08D05",null,"OÑA",null,"SAN MARTIN DE PUZHIO"]
["ELIJA UN CANTON","No",10,null,"octubre",10,null,2003,12,null,null,2,"08D06",null,"PAUTE"]
["ELIJA UN CANTON",null,11,null,"noviembre",11,null,2002,13,null,null,3,"10D01",null,"PUCARA",null,"PR_AZUAY_CUENCA"]
["ELIJA UN CANTON","AZUAY",12,null,"diciembre",12,null,2001,14,null,null,3,"10D02",null,"SAN FERNANDO",null,"BAÑOS"]
["ELIJA UN CANTON","BOLIVAR",13,null,null,null,null,2000,15,null,null,3,"10D03",null,"SANTA ISABEL",null,"CHAUCHA"]
["ELIJA UN CANTON","CAÑAR",14,null,"Padre",null,null,1999,16,null,null,3,"21D01",null,"SEVILLA DE ORO",null,"CHECA (JIDCAY)"]
["ELIJA UN CANTON","CARCHI",15,null,"Madre",null,null,1998,17,null,null,3,"21D02",null,"SIGSIG",null,"CHIQUINTAD"]
["ELIJA UN CANTON","CHIMBORAZO",16,null,"Abuelo/a",null,null,1997,18,null,null,3,"21D03",null,"",null,"CUENCA"]
["ELIJA UN CANTON","COTOPAXI",17,null,"Tío/a",null,null,1996,19,null,null,3,"21D04",null,"PR_BOLIVAR",null,"CUMBE"]
["ELIJA UN CANTON","EL ORO",18,null,"Otro/a",null,null,1995,20,null,null,4,null,null,"CALUMA",null,"LLACAO"]
["ELIJA UN CANTON","ESMERALDAS",19,null,null,null,null,1994,{"$f":"2015-H82","v":83},null,null,4,"ZONA 2",null,"CHILLANES",null,"MOLLETURO"]
["ELIJA UN CANTON","GALÁPAGOS",20,null,"Masculino",null,null,1993,{"$f":"2015-H83","v":84},null,null,4,"15D01",null,"ECHEANDIA",null,"NULTI"]
["ELIJA UN CANTON","GUAYAS",21,null,"Femenino",null,null,1992,{"$f":"2015-H84","v":85},null,null,4,"15D02",null,"GUARANDA",null,"OCTAVIO CORDERO PALACIOS"]
["ELIJA UN CANTON","IMBABURA",22,null,null,null,null,1991,null,null,null,4,"17D10",null,"LAS NAVES",null,"PACCHA"]
["ELIJA UN CANTON","LOJA",23,null,"2do. EGB",null,null,1990,null,null,null,4,"17D11",null,"SAN JOSE DE CHIMBO",null,"QUINGEO"]
["ELIJA UN CANTON","LOS RIOS",24,null,"3ro. EGB",null,null,1989,null,null,null,4,"17D12",null,"SAN MIGUEL",null,"RICAURTE"]
["ELIJA UN CANTON","MANABI",25,null,"4to. EGB",null,null,1988,null,null,null,4,"22D01",null,"",null,"SAN JOAQUIN"]
["ELIJA UN CANTON","MORONA SANTIAGO",26,null,"5to. EGB",null,null,1987,null,null,null,4,"22D02",null,"PR_CAÑAR",null,"SANTA ANA"]
["ELIJA UN CANTON","NAPO",27,null,"6to. EGB",null,null,1986,null,null,null,4,"22D03",null,"AZOGUES",null,"SAYAUSI"]
["ELIJA UN CANTON","ORELLANA",28,null,"7mo. EGB",null,null,1985,null,null,null,4,null,null,"BIBLIAN",null,"SIDCAY"]
[null,"PASTAZA",29,null,"8vo. EGB",null,null,1984,null,null,null,4,"ZONA 3",null,"CAÑAR",null,"SININCAY"]
[null,"PICHINCHA",30,null,"9no. EGB",null,null,1983,null,null,null,4,"05D01",null,"DELEG",null,"TARQUI"]
[null,"SANTA ELENA",31,null,"10mo. EGB",null,null,1982,null,null,null,4,"05D02",null,"EL TAMBO",null,"TURI"]
[null,"SANTO DOMINGO",null,null,"1ro. BGU",null,null,1981,null,null,null,4,"05D03",null,"LA TRONCAL",null,"VALLE"]
[null,"SUCUMBÍOS",null,null,"2do. BGU",null,null,1980,null,null,null,5,"05D04",null,"SUSCAL",null,"VICTORIA DEL PORTETE"]
[null,"TUNGURAHUA",null,null,"3ro. BGU",null,null,1979,null,null,null,5,"05D05",null,""]
[null,"ZAMORA CHINCHIPE",null,null,null,null,null,1978,null,null,null,5,"05D06",null,"PR_CARCHI",null,"PR_AZUAY_EL_PAN"]
[null,"ZONAS NO DELIMITADAS",null,null,null,null,null,1977,null,null,null,5,"06D01",null,"BOLIVAR",null,"EL PAN"]
[null,null,null,null,null,null,null,1976,null,null,null,5,"06D02",null,"ESPEJO",null,"SAN VICENTE"]
[null,null,null,null,null,null,null,1975,null,null,null,5,"06D03",null,"MIRA"]
[null,"Particular",null,null,null,null,null,1974,null,null,null,5,"06D04",null,"MONTUFAR",null,"PR_AZUAY_GIRON"]
[null,"Fiscomisional",null,null,null,null,null,1973,null,null,null,5,"06D05",null,"SAN PEDRO DE HUACA",null,"ASUNCION"]
[null,"Municipal",null,null,null,null,null,1972,null,null,null,5,"16D01",null,"TULCAN",null,"GIRON"]
[null,null,null,null,null,null,null,1971,null,null,null,5,"16D02",null,"",null,"SAN GERARDO"]
[null,null,null,null,null,null,null,1970,null,null,null,5,"18D01",null,"PR_CHIMBORAZO"]
[null,"Solamente un aspirante",null,null,null,null,null,1969,null,null,null,5,"18D02",null,"ALAUSI",null,"PR_AZUAY_GUACHAPALA"]
[null,"Varios aspirantes (hermanos)",null,null,null,null,null,1968,null,null,null,5,"18D03",null,"CHAMBO",null,"GUACHAPALA"]
[null,null,null,null,null,null,null,1967,null,null,null,5,"18D04",null,"CHUNCHI"]
[null,null,null,null,null,null,null,1966,null,null,null,5,"18D05",null,"COLTA",null,"PR_AZUAY_GUALACEO"]
[null,"Soltero",null,null,null,null,null,1965,null,null,null,5,"18D06",null,"CUMANDA",null,"DANIEL CORDOVA TORAL"]
[null,"Casado",null,null,null,null,null,1964,null,null,null,5,null,null,"GUAMOTE",null,"GUALACEO"]
[null,"Viudo",null,null,null,null,null,1963,null,null,null,5,"ZONA 4",null,"GUANO",null,"JADAN"]
[null,"Divorciado",null,null,null,null,null,1962,null,null,null,5,"13D01",null,"PALLATANGA",null,"LUIS CORDERO VEGA"]
[null,"Unión Libre",null,null,null,null,null,1961,null,null,null,5,"13D02",null,"PENIPE",null,"MARIANO MORENO"]
[null,null,null,null,null,null,null,1960,null,null,null,5,"13D03",null,"RIOBAMBA",null,"REMIGIO CRESPO TORAL"]
[null,"Formal",null,null,null,null,null,1959,null,null,null,5,"13D04",null,"",null,"SAN JUAN"]
[null,"Informal",null,null,null,null,null,1958,null,null,null,5,"13D05",null,"PR_COTOPAXI",null,"SIMON BOLIVAR"]
[null,"No trabaja",null,null,null,null,null,1957,null,null,null,5,"13D06",null,"LA MANA",null,"ZHIDMAD"]
[null,null,null,null,null,null,null,1956,null,null,null,5,"13D07",null,"LATACUNGA"]
[null,null,null,null,null,null,null,1955,null,null,null,6,"13D08",null,"PANGUA",null,"PR_AZUAY_NABON"]
[null,null,null,null,null,null,null,1954,null,null,null,6,"13D09",null,"PUJILI",null,"COCHAPATA"]
[null,null,null,null,null,null,null,1953,null,null,null,6,"13D10",null,"SALCEDO",null,"EL PROGRESO"]
[null,null,null,null,null,null,null,1952,null,null,null,6,"13D11",null,"SAQUISILI",null,"LAS NIEVES (CHAYA)"]
[null,null,null,null,null,null,null,1951,null,null,null,6,"13D12",null,"SIGCHOS",null,"NABON"]
[null,null,null,null,null,null,null,1950,null,null,null,6,"23D01",null,""]
[null,null,null,null,null,null,null,1949,null,null,null,7,"23D02",null,"PR_EL_ORO",null,"PR_AZUAY_OÑA"]
[null,null,null,null,null,null,null,1948,null,null,null,7,"23D03",null,"ARENILLAS",null,"OÑA"]
[null,null,null,null,null,null,null,1947,null,null,null,7,null,null,"ATAHUALPA",null,"SUSUDEL"]
[null,null,null,null,null,null,null,1946,null,null,null,7,"ZONA 5",null,"BALSAS"]
[null,null,null,null,null,null,null,1945,null,null,null,7,"02D01",null,"CHILLA",null,"PR_AZUAY_PAUTE"]
[null,null,null,null,null,null,null,1944,null,null,null,7,"02D02",null,"EL GUABO",null,"BULAN"]
[null,null,null,null,null,null,null,1943,null,null,null,7,"02D03",null,"HUAQUILLAS",null,"CHICAN"]
[null,null,null,null,null,null,null,1942,null,null,null,7,"02D04",null,"LAS LAJAS",null,"DUG-DUG"]
[null,null,null,null,null,null,null,1941,null,null,null,7,"09D11",null,"MACHALA",null,"EL CABO"]
[null,null,null,null,null,null,null,1940,null,null,null,7,"09D12",null,"MARCABELI",null,"GUARAINAG"]
[null,null,null,null,null,null,null,1939,null,null,null,7,"09D13",null,"PASAJE",null,"PAUTE"]
[null,null,null,null,null,null,null,1938,null,null,null,7,"09D14",null,"PIÑAS",null,"SAN CRISTOBAL"]
[null,null,null,null,null,null,null,1937,null,null,null,7,"09D15",null,"PORTOVELO",null,"TOMEBAMBA"]
[null,null,null,null,null,null,null,1936,null,null,null,7,"09D16",null,"SANTA ROSA"]
[null,null,null,null,null,null,null,1935,null,null,null,8,"09D17",null,"ZARUMA",null,"PR_AZUAY_PUCARA"]
[null,null,null,null,null,null,null,1934,null,null,null,8,"09D18",null,"",null,"PUCARA"]
[null,null,null,null,null,null,null,1933,null,null,null,8,"09D19",null,"PR_ESMERALDAS",null,"SAN RAFAEL DE SHARUG"]
[null,null,null,null,null,null,null,1932,null,null,null,8,"09D20",null,"ATACAMES"]
[null,null,null,null,null,null,null,1931,null,null,null,8,"09D21",null,"ELOY ALFARO",null,"PR_AZUAY_SAN_FERNANDO"]
[null,null,null,null,null,null,null,1930,null,null,null,8,"09D22",null,"ESMERALDAS",null,"CHUMBLIN"]
[null,null,null,null,null,null,null,null,null,null,null,8,"12D01",null,"LA CONCORDIA",null,"SAN FERNANDO"]
[null,null,null,null,null,null,null,null,null,null,null,8,"12D02",null,"MUISNE"]
[null,null,null,null,null,null,null,null,null,null,null,8,"12D03",null,"QUININDE",null,"PR_AZUAY_SANTA_ISABEL"]
[null,null,null,null,null,null,null,null,null,null,null,8,"12D04",null,"RIOVERDE",null,"ABDON CALDERON"]
[null,null,null,null,null,null,null,null,null,null,null,8,"12D05",null,"SAN LORENZO",null,"SANTA ISABEL"]
[null,null,null,null,null,null,null,null,null,null,null,8,"12D06",null,"",null,"ZHAGLLI"]
[null,null,null,null,null,null,null,null,null,null,null,9,"20D01",null,"PR_GALÁPAGOS"]
[null,null,null,null,null,null,null,null,null,null,null,null,"24D01",null,"ISABELA",null,"PR_AZUAY_SEVILLA_DE_ORO"]
[null,null,null,null,null,null,null,null,null,null,null,null,"24D02",null,"SAN CRISTOBAL",null,"AMALUZA"]
[null,null,null,null,null,null,null,null,null,null,null,null,null,null,"SANTA CRUZ",null,"PALMAS"]
[null,null,null,null,null,null,null,null,null,null,null,null,"ZONA 6",null,"",null,"SEVILLA DE ORO"]
[null,null,null,null,null,null,null,null,null,null,null,null,"01D01",null,"PR_GUAYAS"]
[null,null,null,null,null,null,null,null,null,null,null,null,"01D02",null,"ALFREDO BAQUERIZO MORENO",null,"PR_AZUAY_SIGSIG"]
[null,null,null,null,null,null,null,null,null,null,null,null,"01D03",null,"BALAO",null,"CUCHIL"]
[null,null,null,null,null,null,null,null,null,null,null,null,"01D04",null,"BALZAR",null,"GIMA"]
[null,null,null,null,null,null,null,null,null,null,null,null,"01D05",null,"COLIMES",null,"GUEL"]
[null,null,null,null,null,null,null,null,null,null,null,null,"01D06",null,"CORONEL MARCELINO MARIDUEÑA",null,"LUDO"]
[null,null,null,null,null,null,null,null,null,null,null,null,"01D07",null,"DAULE",null,"SAN BARTOLOME"]
[null,null,null,null,null,null,null,null,null,null,null,null,"01D08",null,"DURAN",null,"SAN JOSE DE RARANGA"]
[null,null,null,null,null,null,null,null,null,null,null,null,"03D01",null,"EL EMPALME",null,"SIGSIG"]
[null,null,null,null,null,null,null,null,null,null,null,null,"03D02",null,"EL TRIUNFO"]
[null,null,null,null,null,null,null,null,null,null,null,null,"03D03",null,"GENERAL ANTONIO ELIZALDE",null,"PR_BOLIVAR_CALUMA"]
[null,null,null,null,null,null,null,null,null,null,null,null,"14D01",null,"GUAYAQUIL",null,"CALUMA"]
[null,null,null,null,null,null,null,null,null,null,null,null,"14D02",null,"ISIDRO AYORA"]
[null,null,null,null,null,null,null,null,null,null,null,null,"14D03",null,"LOMAS DE SARGENTILLO",null,"PR_BOLIVAR_CHILLANES"]
[null,null,null,null,null,null,null,null,null,null,null,null,"14D04",null,"MILAGRO",null,"CHILLANES"]
[null,null,null,null,null,null,null,null,null,null,null,null,"14D05",null,"NARANJAL",null,"SAN JOSE DEL TAMBO"]
[null,null,null,null,null,null,null,null,null,null,null,null,"14D06",null,"NARANJITO"]
[null,null,null,null,null,null,null,null,null,null,null,null,null,null,"NOBOL",null,"PR_BOLIVAR_ECHEANDIA"]
[null,null,null,null,null,null,null,null,null,null,null,null,"ZONA 7",null,"PALESTINA",null,"ECHEANDIA"]
[null,null,null,null,null,null,null,null,null,null,null,null,"07D01",null,"PEDRO CARBO"]
[null,null,null,null,null,null,null,null,null,null,null,null,"07D02",null,"PLAYAS",null,"PR_BOLIVAR_GUARANDA"]
[null,null,null,null,null,null,null,null,null,null,null,null,"07D03",null,"SAMBORONDON",null,"FACUNDO VELA"]
[null,null,null,null,null,null,null,null,null,null,null,null,"07D04",null,"SANTA LUCIA",null,"GUARANDA"]
[null,null,null,null,null,null,null,null,null,null,null,null,"07D05",null,"SIMON BOLIVAR",null,"JULIO E. MORENO"]
[null,null,null,null,null,null,null,null,null,null,null,null,"07D06",null,"URBINA JADO",null,"SALINAS"]
[null,null,null,null,null,null,null,null,null,null,null,null,"11D01",null,"YAGUACHI",null,"SAN LORENZO"]
[null,null,null,null,null,null,null,null,null,null,null,null,"11D02",null,"",null,"SAN LUIS DE PAMBIL"]
[null,null,null,null,null,null,null,null,null,null,null,null,"11D03",null,"PR_IMBABURA",null,"SAN SIMON (YACOTO)"]
[null,null,null,null,null,null,null,null,null,null,null,null,"11D04",null,"ANTONIO ANTE",null,"SANTAFE (SANTA FE)"]
[null,null,null,null,null,null,null,null,null,null,null,null,"11D05",null,"COTACACHI",null,"SIMIATUG"]
[null,null,null,null,null,null,null,null,null,null,null,null,"11D06",null,"IBARRA"]
[null,null,null,null,null,null,null,null,null,null,null,null,"11D07",null,"OTAVALO",null,"PR_BOLIVAR_LAS_NAVES"]
[null,null,null,null,null,null,null,null,null,null,null,null,"11D08",null,"PIMAMPIRO",null,"LAS NAVES"]
[null,null,null,null,null,null,null,null,null,null,null,null,"11D09",null,"SAN MIGUEL DE URCUQUI"]
[null,null,null,null,null,null,null,null,null,null,null,null,"19D01",null,"",null,"PR_BOLIVAR_SAN_JOSE_DE_CHIMBO"]
[null,null,null,null,null,null,null,null,null,null,null,null,"19D02",null,"PR_LOJA",null,"ASUNCION (ASANCOTO)"]
[null,null,null,null,null,null,null,null,null,null,null,null,"19D03",null,"CALVAS",null,"MAGDALENA (CHAPACOTO)"]
[null,null,null,null,null,null,null,null,null,null,null,null,"19D04",null,"CATAMAYO",null,"SAN JOSE DE CHIMBO"]
[null,null,null,null,null,null,null,null,null,null,null,null,null,null,"CELICA",null,"SAN SEBASTIAN"]
[null,null,null,null,null,null,null,null,null,null,null,null,"ZONA 8",null,"CHAGUARPAMBA",null,"TELIMBELA"]
[null,null,null,null,null,null,null,null,null,null,null,null,"09D01",null,"ESPINDOLA"]
[null,null,null,null,null,null,null,null,null,null,null,null,"09D02",null,"GONZANAMA",null,"PR_BOLIVAR_SAN_MIGUEL"]
[null,null,null,null,null,null,null,null,null,null,null,null,"09D03",null,"LOJA",null,"BALSAPAMBA"]
[null,null,null,null,null,null,null,null,null,null,null,null,"09D04",null,"MACARA",null,"BILOVAN"]
[null,null,null,null,null,null,null,null,null,null,null,null,"09D05",null,"OLMEDO",null,"REGULO DE MORA"]
[null,null,null,null,null,null,null,null,null,null,null,null,"09D06",null,"PALTAS",null,"SAN MIGUEL"]
[null,null,null,null,null,null,null,null,null,null,null,null,"09D07",null,"PINDAL",null,"SAN PABLO"]
[null,null,null,null,null,null,null,null,null,null,null,null,"09D08",null,"PUYANGO",null,"SAN VICENTE"]
[null,null,null,null,null,null,null,null,null,null,null,null,"09D09",null,"QUILANGA",null,"SANTIAGO"]
[null,null,null,null,null,null,null,null,null,null,null,null,"09D10",null,"SARAGURO"]
[null,null,null,null,null,null,null,null,null,null,null,null,"09D23",null,"SOZORANGA",null,"PR_CAÑAR_AZOGUES"]
[null,null,null,null,null,null,null,null,null,null,null,null,"09D24",null,"ZAPOTILLO",null,"AZOGUES"]
[null,null,null,null,null,null,null,null,null,null,null,null,null,null,"",null,"COJITAMBO"]
[null,null,null,null,null,null,null,null,null,null,null,null,"ZONA 9",null,"PR_LOS_RIOS",null,"GUAPAN"]
[null,null,null,null,null,null,null,null,null,null,null,null,"17D01",null,"BABA",null,"JAVIER LOYOLA"]
[null,null,null,null,null,null,null,null,null,null,null,null,"17D02",null,"BABAHOYO",null,"LUIS CORDERO"]
[null,null,null,null,null,null,null,null,null,null,null,null,"17D03",null,"BUENA FE",null,"PINDILIG"]
[null,null,null,null,null,null,null,null,null,null,null,null,"17D04",null,"MOCACHE",null,"RIVERA"]
[null,null,null,null,null,null,null,null,null,null,null,null,"17D05",null,"MONTALVO",null,"SAN MIGUEL"]
[null,null,null,null,null,null,null,null,null,null,null,null,"17D06",null,"PALENQUE",null,"TADAY"]
[null,null,null,null,null,null,null,null,null,null,null,null,"17D07",null,"PUEBLOVIEJO"]
[null,null,null,null,null,null,null,null,null,null,null,null,"17D08",null,"QUEVEDO",null,"PR_CAÑAR_BIBLIAN"]
[null,null,null,null,null,null,null,null,null,null,null,null,"17D09",null,"QUINSALOMA",null,"BIBLIAN"]
[null,null,null,null,null,null,null,null,null,null,null,null,null,null,"URDANETA",null,"JERUSALEN"]
[null,null,null,null,null,null,null,null,null,null,null,null,null,null,"VALENCIA",null,"NAZON"]
[null,null,null,null,null,null,null,null,null,null,null,null,null,null,"VENTANAS",null,"SAN FRANCISCO DE SAGEO"]
[null,null,null,null,null,null,null,null,null,null,null,null,null,null,"VINCES",null,"TURUPAMBA"]
[null,null,null,null,null,null,null,null,null,null,null,null,null,null,""]
[null,null,null,null,null,null,null,null,null,null,null,null,null,null,"PR_MANABI",null,"PR_CAÑAR_CAÑAR"]
[null,null,null,null,null,null,null,null,null,null,null,null,null,null,"24 DE MAYO",null,"CAÑAR"]
[null,null,null,null,null,null,null,null,null,null,null,null,null,null,"BOLIVAR",null,"CHONTAMARCA"]
[null,null,null,null,null,null,null,null,null,null,null,null,null,null,"CHONE",null,"CHOROCOPTE"]
[null,null,null,null,null,null,null,null,null,null,null,null,null,null,"EL CARMEN",null,"DUCUR"]
[null,null,null,null,null,null,null,null,null,null,null,null,null,null,"FLAVIO ALFARO",null,"GENERAL MORALES"]
[null,null,null,null,null,null,null,null,null,null,null,null,null,null,"JAMA",null,"GUALLETURO"]
[null,null,null,null,null,null,null,null,null,null,null,null,null,null,"JARAMIJO",null,"HONORATO VASQUEZ"]
[null,null,null,null,null,null,null,null,null,null,null,null,null,null,"JIPIJAPA",null,"INGAPIRCA"]
[null,null,null,null,null,null,null,null,null,null,null,null,null,null,"JUNIN",null,"JUNCAL"]
[null,null,null,null,null,null,null,null,null,null,null,null,null,null,"MANTA",null,"SAN ANTONIO"]
[null,null,null,null,null,null,null,null,null,null,null,null,null,null,"MONTECRISTI",null,"VENTURA"]
[null,null,null,null,null,null,null,null,null,null,null,null,null,null,"OLMEDO",null,"ZHUD"]
[null,null,null,null,null,null,null,null,null,null,null,null,null,null,"PAJAN"]
[null,null,null,null,null,null,null,null,null,null,null,null,null,null,"PEDERNALES",null,"PR_CAÑAR_DELEG"]
[null,null,null,null,null,null,null,null,null,null,null,null,null,null,"PICHINCHA",null,"DELEG"]
[null,null,null,null,null,null,null,null,null,null,null,null,null,null,"PORTOVIEJO",null,"SOLANO"]
[null,null,null,null,null,null,null,null,null,null,null,null,null,null,"PUERTO LOPEZ"]
[null,null,null,null,null,null,null,null,null,null,null,null,null,null,"ROCAFUERTE",null,"PR_CAÑAR_EL_TAMBO"]
[null,null,null,null,null,null,null,null,null,null,null,null,null,null,"SAN VICENTE",null,"EL TAMBO"]
[null,null,null,null,null,null,null,null,null,null,null,null,null,null,"SANTA ANA"]
[null,null,null,null,null,null,null,null,null,null,null,null,null,null,"SUCRE",null,"PR_CAÑAR_LA_TRONCAL"]
[null,null,null,null,null,null,null,null,null,null,null,null,null,null,"TOSAGUA",null,"LA TRONCAL"]
[null,null,null,null,null,null,null,null,null,null,null,null,null,null,"",null,"MANUEL J. CALLE"]
[null,null,null,null,null,null,null,null,null,null,null,null,null,null,"PR_MORONA_SANTIAGO",null,"PANCHO NEGRO"]
[null,null,null,null,null,null,null,null,null,null,null,null,null,null,"GUALAQUIZA"]
[null,null,null,null,null,null,null,null,null,null,null,null,null,null,"HUAMBOYA",null,"PR_CAÑAR_SUSCAL"]
[null,null,null,null,null,null,null,null,null,null,null,null,null,null,"LIMON INDANZA",null,"SUSCAL"]
[null,null,null,null,null,null,null,null,null,null,null,null,null,null,"LOGROÑO"]
[null,null,null,null,null,null,null,null,null,null,null,null,null,null,"MORONA",null,"PR_CARCHI_BOLIVAR"]
[null,null,null,null,null,null,null,null,null,null,null,null,null,null,"PABLO VI",null,"BOLIVAR"]
[null,null,null,null,null,null,null,null,null,null,null,null,null,null,"PALORA",null,"GARCIA MORENO"]
[null,null,null,null,null,null,null,null,null,null,null,null,null,null,"SAN JUAN BOSCO",null,"LOS ANDES"]
[null,null,null,null,null,null,null,null,null,null,null,null,null,null,"SANTIAGO",null,"MONTE OLIVO"]
[null,null,null,null,null,null,null,null,null,null,null,null,null,null,"SUCUA",null,"SAN RAFAEL"]
[null,null,null,null,null,null,null,null,null,null,null,null,null,null,"TAISHA",null,"SAN VICENTE DE PUSIR"]
[null,null,null,null,null,null,null,null,null,null,null,null,null,null,"TIWINTZA"]
[null,null,null,null,null,null,null,null,null,null,null,null,null,null,"",null,"PR_CARCHI_ESPEJO"]
[null,null,null,null,null,null,null,null,null,null,null,null,null,null,"PR_NAPO",null,"EL ANGEL"]
[null,null,null,null,null,null,null,null,null,null,null,null,null,null,"ARCHIDONA",null,"EL GOALTAL"]
[null,null,null,null,null,null,null,null,null,null,null,null,null,null,"CARLOS JULIO AROSEMENA",null,"LA LIBERTAD (ALIZO)"]
[null,null,null,null,null,null,null,null,null,null,null,null,null,null,"EL CHACO",null,"SAN ISIDRO"]
[null,null,null,null,null,null,null,null,null,null,null,null,null,null,"QUIJOS"]
[null,null,null,null,null,null,null,null,null,null,null,null,null,null,"TENA",null,"PR_CARCHI_MIRA"]
[null,null,null,null,null,null,null,null,null,null,null,null,null,null,"",null,"CONCEPCION"]
[null,null,null,null,null,null,null,null,null,null,null,null,null,null,"PR_ORELLANA",null,"JIJON Y CAAMAÑO"]
[null,null,null,null,null,null,null,null,null,null,null,null,null,null,"AGUARICO",null,"JUAN MONTALVO"]
[null,null,null,null,null,null,null,null,null,null,null,null,null,null,"LA JOYA DE LOS SACHAS",null,"MIRA (CHONTAHUASI)"]
[null,null,null,null,null,null,null,null,null,null,null,null,null,null,"LORETO"]
[null,null,null,null,null,null,null,null,null,null,null,null,null,null,"ORELLANA",null,"PR_CARCHI_MONTUFAR"]
[null,null,null,null,null,null,null,null,null,null,null,null,null,null,"",null,"CHITAN DE NAVARRETE"]
[null,null,null,null,null,null,null,null,null,null,null,null,null,null,"PR_PASTAZA",null,"CRISTOBAL COLON"]
[null,null,null,null,null,null,null,null,null,null,null,null,null,null,"ARAJUNO",null,"FERNANDEZ SALVADOR"]
[null,null,null,null,null,null,null,null,null,null,null,null,null,null,"MERA",null,"LA PAZ"]
[null,null,null,null,null,null,null,null,null,null,null,null,null,null,"PASTAZA",null,"PIARTAL"]
[null,null,null,null,null,null,null,null,null,null,null,null,null,null,"SANTA CLARA",null,"SAN GABRIEL"]
[null,null,null,null,null,null,null,null,null,null,null,null,null,null,""]
[null,null,null,null,null,null,null,null,null,null,null,null,null,null,"PR_PICHINCHA",null,"PR_CARCHI_SAN_PEDRO_DE_HUACA"]
[null,null,null,null,null,null,null,null,null,null,null,null,null,null,"CAYAMBE",null,"HUACA"]
[null,null,null,null,null,null,null,null,null,null,null,null,null,null,"MEJIA",null,"MARISCAL SUCRE"]
[null,null,null,null,null,null,null,null,null,null,null,null,null,null,"PEDRO MONCAYO"]
[null,null,null,null,null,null,null,null,null,null,null,null,null,null,"PEDRO VICENTE MALDONADO",null,"PR_CARCHI_TULCAN"]
[null,null,null,null,null,null,null,null,null,null,null,null,null,null,"PUERTO QUITO",null,"EL CARMELO (EL PUN)"]
[null,null,null,null,null,null,null,null,null,null,null,null,null,null,"QUITO",null,"EL CHICAL"]
[null,null,null,null,null,null,null,null,null,null,null,null,null,null,"RUMIÑAHUI",null,"JULIO ANDRADE (OREJUELA)"]
[null,null,null,null,null,null,null,null,null,null,null,null,null,null,"SAN MIGUEL DE LOS BANCOS",null,"MALDONADO"]
[null,null,null,null,null,null,null,null,null,null,null,null,null,null,"",null,"PIOTER"]
[null,null,null,null,null,null,null,null,null,null,null,null,null,null,"PR_SANTA_ELENA",null,"SANTA MARTHA DE CUBA"]
[null,null,null,null,null,null,null,null,null,null,null,null,null,null,"LIBERTAD",null,"TOBAR DONOSO (LA BOCANA)"]
[null,null,null,null,null,null,null,null,null,null,null,null,null,null,"SALINAS",null,"TUFIÑO"]
[null,null,null,null,null,null,null,null,null,null,null,null,null,null,"SANTA ELENA",null,"TULCAN"]
[null,null,null,null,null,null,null,null,null,null,null,null,null,null,"",null,"URBINA (TAYA)"]
[null,null,null,null,null,null,null,null,null,null,null,null,null,null,"PR_SANTO_DOMINGO"]
[null,null,null,null,null,null,null,null,null,null,null,null,null,null,"SANTO DOMINGO DE LOS TSACHILAS",null,"PR_CHIMBORAZO_ALAUSI"]
[null,null,null,null,null,null,null,null,null,null,null,null,null,null,"",null,"ACHUPALLAS"]
[null,null,null,null,null,null,null,null,null,null,null,null,null,null,"PR_SUCUMBÍOS",null,"ALAUSI"]
[null,null,null,null,null,null,null,null,null,null,null,null,null,null,"CASCALES",null,"GUASUNTOS"]
[null,null,null,null,null,null,null,null,null,null,null,null,null,null,"CUYABENO",null,"HUIGRA"]
[null,null,null,null,null,null,null,null,null,null,null,null,null,null,"GONZALO PIZARRO",null,"MULTITUD"]
[null,null,null,null,null,null,null,null,null,null,null,null,null,null,"LAGO AGRIO",null,"PISTISHI (NARIZ DEL DIABLO)"]
[null,null,null,null,null,null,null,null,null,null,null,null,null,null,"PUTUMAYO",null,"PUMALLACTA (PUMAL-LACTA)"]
[null,null,null,null,null,null,null,null,null,null,null,null,null,null,"SHUSHUFINDI",null,"SEVILLA"]
[null,null,null,null,null,null,null,null,null,null,null,null,null,null,"SUCUMBIOS",null,"SIBAMBE"]
[null,null,null,null,null,null,null,null,null,null,null,null,null,null,"",null,"TIXAN"]
[null,null,null,null,null,null,null,null,null,null,null,null,null,null,"PR_TUNGURAHUA"]
[null,null,null,null,null,null,null,null,null,null,null,null,null,null,"AMBATO",null,"PR_CHIMBORAZO_CHAMBO"]
[null,null,null,null,null,null,null,null,null,null,null,null,null,null,"BAÑOS",null,"CHAMBO"]
[null,null,null,null,null,null,null,null,null,null,null,null,null,null,"CEVALLOS"]
[null,null,null,null,null,null,null,null,null,null,null,null,null,null,"MOCHA",null,"PR_CHIMBORAZO_CHUNCHI"]
[null,null,null,null,null,null,null,null,null,null,null,null,null,null,"PATATE",null,"CAPZOL"]
[null,null,null,null,null,null,null,null,null,null,null,null,null,null,"QUERO",null,"CHUNCHI"]
[null,null,null,null,null,null,null,null,null,null,null,null,null,null,"SAN PEDRO DE PELILEO",null,"COMPUD"]
[null,null,null,null,null,null,null,null,null,null,null,null,null,null,"SANTIAGO DE PILLARO",null,"GONZOL"]
[null,null,null,null,null,null,null,null,null,null,null,null,null,null,"TISALEO",null,"LLAGOS"]
[null,null,null,null,null,null,null,null,null,null,null,null,null,null,""]
[null,null,null,null,null,null,null,null,null,null,null,null,null,null,"PR_ZAMORA_CHINCHIPE",null,"PR_CHIMBORAZO_COLTA"]
[null,null,null,null,null,null,null,null,null,null,null,null,null,null,"CENTINELA DEL CONDOR",null,"CAÑI"]
[null,null,null,null,null,null,null,null,null,null,null,null,null,null,"CHINCHIPE",null,"COLUMBE"]
[null,null,null,null,null,null,null,null,null,null,null,null,null,null,"EL PANGUI",null,"JUAN DE VELASCO (PANGOR)"]
[null,null,null,null,null,null,null,null,null,null,null,null,null,null,"NANGARITZA",null,"SANTIAGO DE QUITO"]
[null,null,null,null,null,null,null,null,null,null,null,null,null,null,"PALANDA",null,"VILLA LA UNION"]
[null,null,null,null,null,null,null,null,null,null,null,null,null,null,"PAQUISHA"]
[null,null,null,null,null,null,null,null,null,null,null,null,null,null,"YACUAMBI",null,"PR_CHIMBORAZO_CUMANDA"]
[null,null,null,null,null,null,null,null,null,null,null,null,null,null,"YANTZAZA",null,"CUMANDA"]
[null,null,null,null,null,null,null,null,null,null,null,null,null,null,"ZAMORA"]
[null,null,null,null,null,null,null,null,null,null,null,null,null,null,"",null,"PR_CHIMBORAZO_GUAMOTE"]
[null,null,null,null,null,null,null,null,null,null,null,null,null,null,"PR_ZONAS_NO_DELIMITADAS",null,"CEBADAS"]
[null,null,null,null,null,null,null,null,null,null,null,null,null,null,"EL PIEDRERO",null,"GUAMOTE"]
[null,null,null,null,null,null,null,null,null,null,null,null,null,null,"LAS GOLONDRINAS",null,"PALMIRA"]
[null,null,null,null,null,null,null,null,null,null,null,null,null,null,"MANGA DEL CURA"]
[null,null,null,null,null,null,null,null,null,null,null,null,null,null,null,null,"PR_CHIMBORAZO_GUANO"]
[null,null,null,null,null,null,null,null,null,null,null,null,null,null,null,null,"GUANANDO"]
[null,null,null,null,null,null,null,null,null,null,null,null,null,null,null,null,"GUANO"]
[null,null,null,null,null,null,null,null,null,null,null,null,null,null,null,null,"ILAPO"]
[null,null,null,null,null,null,null,null,null,null,null,null,null,null,null,null,"LA PROVIDENCIA"]
[null,null,null,null,null,null,null,null,null,null,null,null,null,null,null,null,"SAN ANDRES"]
[null,null,null,null,null,null,null,null,null,null,null,null,null,null,null,null,"SAN GERARDO DE PACAICAGUAN"]
[null,null,null,null,null,null,null,null,null,null,null,null,null,null,null,null,"SAN ISIDRO DE PATULU"]
[null,null,null,null,null,null,null,null,null,null,null,null,null,null,null,null,"SAN JOSE DEL CHAZO"]
[null,null,null,null,null,null,null,null,null,null,null,null,null,null,null,null,"SANTA FE DE GALAN"]
[null,null,null,null,null,null,null,null,null,null,null,null,null,null,null,null,"VALPARAISO"]
[]
[null,null,null,null,null,null,null,null,null,null,null,null,null,null,null,null,"PR_CHIMBORAZO_PALLATANGA"]
[null,null,null,null,null,null,null,null,null,null,null,null,null,null,null,null,"PALLATANGA"]
[]
[null,null,null,null,null,null,null,null,null,null,null,null,null,null,null,null,"PR_CHIMBORAZO_PENIPE"]
[null,null,null,null,null,null,null,null,null,null,null,null,null,null,null,null,"BILBAO"]
[null,null,null,null,null,null,null,null,null,null,null,null,null,null,null,null,"EL ALTAR"]
[null,null,null,null,null,null,null,null,null,null,null,null,null,null,null,null,"LA CANDELARIA"]
[null,null,null,null,null,null,null,null,null,null,null,null,null,null,null,null,"MATUS"]
[null,null,null,null,null,null,null,null,null,null,null,null,null,null,null,null,"PENIPE"]
[null,null,null,null,null,null,null,null,null,null,null,null,null,null,null,null,"PUELA"]
[null,null,null,null,null,null,null,null,null,null,null,null,null,null,null,null,"SAN ANTONIO DE BAYUSHIG"]
[]
[null,null,null,null,null,null,null,null,null,null,null,null,null,null,null,null,"PR_CHIMBORAZO_RIOBAMBA"]
[null,null,null,null,null,null,null,null,null,null,null,null,null,null,null,null,"CACHA"]
[null,null,null,null,null,null,null,null,null,null,null,null,null,null,null,null,"CALPI"]
[null,null,null,null,null,null,null,null,null,null,null,null,null,null,null,null,"CUBIJIES"]
[null,null,null,null,null,null,null,null,null,null,null,null,null,null,null,null,"FLORES"]
[null,null,null,null,null,null,null,null,null,null,null,null,null,null,null,null,"LICAN"]
[null,null,null,null,null,null,null,null,null,null,null,null,null,null,null,null,"LICTO"]
[null,null,null,null,null,null,null,null,null,null,null,null,null,null,null,null,"PUNGALA"]
[null,null,null,null,null,null,null,null,null,null,null,null,null,null,null,null,"PUNIN"]
[null,null,null,null,null,null,null,null,null,null,null,null,null,null,null,null,"QUIMIAG"]
[null,null,null,null,null,null,null,null,null,null,null,null,null,null,null,null,"RIOBAMBA"]
[null,null,null,null,null,null,null,null,null,null,null,null,null,null,null,null,"SAN JUAN"]
[null,null,null,null,null,null,null,null,null,null,null,null,null,null,null,null,"SAN LUIS"]
[]
[null,null,null,null,null,null,null,null,null,null,null,null,null,null,null,null,"PR_COTOPAXI_LA_MANA"]
[null,null,null,null,null,null,null,null,null,null,null,null,null,null,null,null,"GUASAGANDA"]
[null,null,null,null,null,null,null,null,null,null,null,null,null,null,null,null,"LA MANA"]
[null,null,null,null,null,null,null,null,null,null,null,null,null,null,null,null,"PUCAYACU"]
[]
[null,null,null,null,null,null,null,null,null,null,null,null,null,null,null,null,"PR_COTOPAXI_LATACUNGA"]
[null,null,null,null,null,null,null,null,null,null,null,null,null,null,null,null,"11 DE NOVIEMBRE (ILINCHI"]
[null,null,null,null,null,null,null,null,null,null,null,null,null,null,null,null,"ALAQUES (ALAQUEZ)"]
[null,null,null,null,null,null,null,null,null,null,null,null,null,null,null,null,"BELISARIO QUEVEDO"]
[null,null,null,null,null,null,null,null,null,null,null,null,null,null,null,null,"GUAITACAMA (GUAYTACAMA)"]
[null,null,null,null,null,null,null,null,null,null,null,null,null,null,null,null,"JOSEGUANGO BAJO"]
[null,null,null,null,null,null,null,null,null,null,null,null,null,null,null,null,"LATACUNGA"]
[null,null,null,null,null,null,null,null,null,null,null,null,null,null,null,null,"MULALO"]
[null,null,null,null,null,null,null,null,null,null,null,null,null,null,null,null,"POALO"]
[null,null,null,null,null,null,null,null,null,null,null,null,null,null,null,null,"SAN JUAN DE PASTOCALLE"]
[null,null,null,null,null,null,null,null,null,null,null,null,null,null,null,null,"TANICUCHI"]
[null,null,null,null,null,null,null,null,null,null,null,null,null,null,null,null,"TOACASO"]
[]
[null,null,null,null,null,null,null,null,null,null,null,null,null,null,null,null,"PR_COTOPAXI_PANGUA"]
[null,null,null,null,null,null,null,null,null,null,null,null,null,null,null,null,"EL CORAZON"]
[null,null,null,null,null,null,null,null,null,null,null,null,null,null,null,null,"MORASPUNGO"]
[null,null,null,null,null,null,null,null,null,null,null,null,null,null,null,null,"PINLLOPATA"]
[null,null,null,null,null,null,null,null,null,null,null,null,null,null,null,null,"RAMON CAMPAÑA"]
[]
[null,null,null,null,null,null,null,null,null,null,null,null,null,null,null,null,"PR_COTOPAXI_PUJILI"]
[null,null,null,null,null,null,null,null,null,null,null,null,null,null,null,null,"ANGAMARCA"]
[null,null,null,null,null,null,null,null,null,null,null,null,null,null,null,null,"GUANGAJE"]
[null,null,null,null,null,null,null,null,null,null,null,null,null,null,null,null,"LA VICTORIA"]
[null,null,null,null,null,null,null,null,null,null,null,null,null,null,null,null,"PILALO"]
[null,null,null,null,null,null,null,null,null,null,null,null,null,null,null,null,"PUJILI"]
[null,null,null,null,null,null,null,null,null,null,null,null,null,null,null,null,"TINGO"]
[null,null,null,null,null,null,null,null,null,null,null,null,null,null,null,null,"ZUMBAHUA"]
[]
[null,null,null,null,null,null,null,null,null,null,null,null,null,null,null,null,"PR_COTOPAXI_SALCEDO"]
[null,null,null,null,null,null,null,null,null,null,null,null,null,null,null,null,"ANTONIO JOSE HOLGUIN"]
[null,null,null,null,null,null,null,null,null,null,null,null,null,null,null,null,"CUSUBAMBA"]
[null,null,null,null,null,null,null,null,null,null,null,null,null,null,null,null,"MULALILLO"]
[null,null,null,null,null,null,null,null,null,null,null,null,null,null,null,null,"MULLIQUINDIL (SANTA ANA)"]
[null,null,null,null,null,null,null,null,null,null,null,null,null,null,null,null,"PANSALEO"]
[null,null,null,null,null,null,null,null,null,null,null,null,null,null,null,null,"SAN MIGUEL"]
[]
[null,null,null,null,null,null,null,null,null,null,null,null,null,null,null,null,"PR_COTOPAXI_SAQUISILI"]
[null,null,null,null,null,null,null,null,null,null,null,null,null,null,null,null,"CANCHAGUA"]
[null,null,null,null,null,null,null,null,null,null,null,null,null,null,null,null,"CHANTILIN"]
[null,null,null,null,null,null,null,null,null,null,null,null,null,null,null,null,"COCHAPAMBA"]
[null,null,null,null,null,null,null,null,null,null,null,null,null,null,null,null,"SAQUISILI"]
[]
[null,null,null,null,null,null,null,null,null,null,null,null,null,null,null,null,"PR_COTOPAXI_SIGCHOS"]
[null,null,null,null,null,null,null,null,null,null,null,null,null,null,null,null,"CHUGCHILAN"]
[null,null,null,null,null,null,null,null,null,null,null,null,null,null,null,null,"ISINLIVI"]
[null,null,null,null,null,null,null,null,null,null,null,null,null,null,null,null,"LAS PAMPAS"]
[null,null,null,null,null,null,null,null,null,null,null,null,null,null,null,null,"PALO QUEMADO"]
[null,null,null,null,null,null,null,null,null,null,null,null,null,null,null,null,"SIGCHOS"]
[]
[null,null,null,null,null,null,null,null,null,null,null,null,null,null,null,null,"PR_EL_ORO_ARENILLAS"]
[null,null,null,null,null,null,null,null,null,null,null,null,null,null,null,null,"ARENILLAS"]
[null,null,null,null,null,null,null,null,null,null,null,null,null,null,null,null,"CARCABON"]
[null,null,null,null,null,null,null,null,null,null,null,null,null,null,null,null,"CHACRAS"]
[null,null,null,null,null,null,null,null,null,null,null,null,null,null,null,null,"PALMALES"]
[]
[null,null,null,null,null,null,null,null,null,null,null,null,null,null,null,null,"PR_EL_ORO_ATAHUALPA"]
[null,null,null,null,null,null,null,null,null,null,null,null,null,null,null,null,"AYAPAMBA"]
[null,null,null,null,null,null,null,null,null,null,null,null,null,null,null,null,"CERRO AZUL"]
[null,null,null,null,null,null,null,null,null,null,null,null,null,null,null,null,"CORDONCILLO"]
[null,null,null,null,null,null,null,null,null,null,null,null,null,null,null,null,"MILAGRO"]
[null,null,null,null,null,null,null,null,null,null,null,null,null,null,null,null,"PACCHA"]
[null,null,null,null,null,null,null,null,null,null,null,null,null,null,null,null,"SAN JOSE"]
[]
[null,null,null,null,null,null,null,null,null,null,null,null,null,null,null,null,"PR_EL_ORO_BALSAS"]
[null,null,null,null,null,null,null,null,null,null,null,null,null,null,null,null,"BALSAS"]
[null,null,null,null,null,null,null,null,null,null,null,null,null,null,null,null,"BELLAMARIA"]
[]
[null,null,null,null,null,null,null,null,null,null,null,null,null,null,null,null,"PR_EL_ORO_CHILLA"]
[null,null,null,null,null,null,null,null,null,null,null,null,null,null,null,null,"CHILLA"]
[]
[null,null,null,null,null,null,null,null,null,null,null,null,null,null,null,null,"PR_EL_ORO_EL_GUABO"]
[null,null,null,null,null,null,null,null,null,null,null,null,null,null,null,null,"BARBONES (SUCRE)"]
[null,null,null,null,null,null,null,null,null,null,null,null,null,null,null,null,"EL GUABO"]
[null,null,null,null,null,null,null,null,null,null,null,null,null,null,null,null,"LA IBERIA"]
[null,null,null,null,null,null,null,null,null,null,null,null,null,null,null,null,"RIO BONITO"]
[null,null,null,null,null,null,null,null,null,null,null,null,null,null,null,null,"TENDALES"]
[]
[null,null,null,null,null,null,null,null,null,null,null,null,null,null,null,null,"PR_EL_ORO_HUAQUILLAS"]
[null,null,null,null,null,null,null,null,null,null,null,null,null,null,null,null,"HUAQUILLAS"]
[]
[null,null,null,null,null,null,null,null,null,null,null,null,null,null,null,null,"PR_EL_ORO_LAS_LAJAS"]
[null,null,null,null,null,null,null,null,null,null,null,null,null,null,null,null,"EL PARAISO"]
[null,null,null,null,null,null,null,null,null,null,null,null,null,null,null,null,"LA LIBERTAD"]
[null,null,null,null,null,null,null,null,null,null,null,null,null,null,null,null,"LA VICTORIA"]
[null,null,null,null,null,null,null,null,null,null,null,null,null,null,null,null,"SAN ISIDRO"]
[]
[null,null,null,null,null,null,null,null,null,null,null,null,null,null,null,null,"PR_EL_ORO_MACHALA"]
[null,null,null,null,null,null,null,null,null,null,null,null,null,null,null,null,"EL RETIRO"]
[null,null,null,null,null,null,null,null,null,null,null,null,null,null,null,null,"MACHALA"]
[]
[null,null,null,null,null,null,null,null,null,null,null,null,null,null,null,null,"PR_EL_ORO_MARCABELI"]
[null,null,null,null,null,null,null,null,null,null,null,null,null,null,null,null,"EL INGENIO"]
[null,null,null,null,null,null,null,null,null,null,null,null,null,null,null,null,"MARCABELI"]
[]
[null,null,null,null,null,null,null,null,null,null,null,null,null,null,null,null,"PR_EL_ORO_PASAJE"]
[null,null,null,null,null,null,null,null,null,null,null,null,null,null,null,null,"BUENAVISTA"]
[null,null,null,null,null,null,null,null,null,null,null,null,null,null,null,null,"CAÑA QUEMADA"]
[null,null,null,null,null,null,null,null,null,null,null,null,null,null,null,null,"CASACAY"]
[null,null,null,null,null,null,null,null,null,null,null,null,null,null,null,null,"LA PEAÑA"]
[null,null,null,null,null,null,null,null,null,null,null,null,null,null,null,null,"PASAJE"]
[null,null,null,null,null,null,null,null,null,null,null,null,null,null,null,null,"PROGRESO"]
[null,null,null,null,null,null,null,null,null,null,null,null,null,null,null,null,"UZHCURRUMI"]
[]
[null,null,null,null,null,null,null,null,null,null,null,null,null,null,null,null,"PR_EL_ORO_PIÑAS"]
[null,null,null,null,null,null,null,null,null,null,null,null,null,null,null,null,"CAPIRO"]
[null,null,null,null,null,null,null,null,null,null,null,null,null,null,null,null,"LA BOCANA"]
[null,null,null,null,null,null,null,null,null,null,null,null,null,null,null,null,"MOROMORO"]
[null,null,null,null,null,null,null,null,null,null,null,null,null,null,null,null,"PIEDRAS"]
[null,null,null,null,null,null,null,null,null,null,null,null,null,null,null,null,"PIÑAS"]
[null,null,null,null,null,null,null,null,null,null,null,null,null,null,null,null,"SAN ROQUE"]
[null,null,null,null,null,null,null,null,null,null,null,null,null,null,null,null,"SARACAY"]
[]
[null,null,null,null,null,null,null,null,null,null,null,null,null,null,null,null,"PR_EL_ORO_PORTOVELO"]
[null,null,null,null,null,null,null,null,null,null,null,null,null,null,null,null,"CURTINCAPA"]
[null,null,null,null,null,null,null,null,null,null,null,null,null,null,null,null,"MORALES"]
[null,null,null,null,null,null,null,null,null,null,null,null,null,null,null,null,"PORTOVELO"]
[null,null,null,null,null,null,null,null,null,null,null,null,null,null,null,null,"SALATI"]
[]
[null,null,null,null,null,null,null,null,null,null,null,null,null,null,null,null,"PR_EL_ORO_SANTA_ROSA"]
[null,null,null,null,null,null,null,null,null,null,null,null,null,null,null,null,"BELLAMARIA"]
[null,null,null,null,null,null,null,null,null,null,null,null,null,null,null,null,"BELLAVISTA"]
[null,null,null,null,null,null,null,null,null,null,null,null,null,null,null,null,"JAMBELI"]
[null,null,null,null,null,null,null,null,null,null,null,null,null,null,null,null,"LA AVANZADA"]
[null,null,null,null,null,null,null,null,null,null,null,null,null,null,null,null,"SAN ANTONIO"]
[null,null,null,null,null,null,null,null,null,null,null,null,null,null,null,null,"SANTA ROSA"]
[null,null,null,null,null,null,null,null,null,null,null,null,null,null,null,null,"TORATA"]
[null,null,null,null,null,null,null,null,null,null,null,null,null,null,null,null,"VICTORIA"]
[]
[null,null,null,null,null,null,null,null,null,null,null,null,null,null,null,null,"PR_EL_ORO_ZARUMA"]
[null,null,null,null,null,null,null,null,null,null,null,null,null,null,null,null,"ABAÑIN"]
[null,null,null,null,null,null,null,null,null,null,null,null,null,null,null,null,"ARCAPAMBA"]
[null,null,null,null,null,null,null,null,null,null,null,null,null,null,null,null,"GUANAZAN"]
[null,null,null,null,null,null,null,null,null,null,null,null,null,null,null,null,"GUIZHAGUIÑA"]
[null,null,null,null,null,null,null,null,null,null,null,null,null,null,null,null,"HUERTAS"]
[null,null,null,null,null,null,null,null,null,null,null,null,null,null,null,null,"MALVAS"]
[null,null,null,null,null,null,null,null,null,null,null,null,null,null,null,null,"MULUNCAY GRANDE"]
[null,null,null,null,null,null,null,null,null,null,null,null,null,null,null,null,"SALVIAS"]
[null,null,null,null,null,null,null,null,null,null,null,null,null,null,null,null,"SINSAO"]
[null,null,null,null,null,null,null,null,null,null,null,null,null,null,null,null,"ZARUMA"]
[]
[null,null,null,null,null,null,null,null,null,null,null,null,null,null,null,null,"PR_ESMERALDAS_ATACAMES"]
[null,null,null,null,null,null,null,null,null,null,null,null,null,null,null,null,"ATACAMES"]
[null,null,null,null,null,null,null,null,null,null,null,null,null,null,null,null,"LA UNION"]
[null,null,null,null,null,null,null,null,null,null,null,null,null,null,null,null,"SUA"]
[null,null,null,null,null,null,null,null,null,null,null,null,null,null,null,null,"TONCHIGUE"]
[null,null,null,null,null,null,null,null,null,null,null,null,null,null,null,null,"TONSUPA"]
[]
[null,null,null,null,null,null,null,null,null,null,null,null,null,null,null,null,"PR_ESMERALDAS_ELOY_ALFARO"]
[null,null,null,null,null,null,null,null,null,null,null,null,null,null,null,null,"ANCHAYACU"]
[null,null,null,null,null,null,null,null,null,null,null,null,null,null,null,null,"ATAHUALPA"]
[null,null,null,null,null,null,null,null,null,null,null,null,null,null,null,null,"BORBON"]
[null,null,null,null,null,null,null,null,null,null,null,null,null,null,null,null,"COLON ELOY DEL MARIA"]
[null,null,null,null,null,null,null,null,null,null,null,null,null,null,null,null,"LA TOLA"]
[null,null,null,null,null,null,null,null,null,null,null,null,null,null,null,null,"LUIS VARGAS TORRES"]
[null,null,null,null,null,null,null,null,null,null,null,null,null,null,null,null,"MALDONADO"]
[null,null,null,null,null,null,null,null,null,null,null,null,null,null,null,null,"PAMPANAL DE BOLIVAR"]
[null,null,null,null,null,null,null,null,null,null,null,null,null,null,null,null,"SAN FRANCISCO DE ONZOLE"]
[null,null,null,null,null,null,null,null,null,null,null,null,null,null,null,null,"SAN JOSE DE CAYAPAS"]
[null,null,null,null,null,null,null,null,null,null,null,null,null,null,null,null,"SANTO DOMINGO DE ONZOLE"]
[null,null,null,null,null,null,null,null,null,null,null,null,null,null,null,null,"SELVA ALEGRE"]
[null,null,null,null,null,null,null,null,null,null,null,null,null,null,null,null,"TELEMBI"]
[null,null,null,null,null,null,null,null,null,null,null,null,null,null,null,null,"TIMBIRE"]
[null,null,null,null,null,null,null,null,null,null,null,null,null,null,null,null,"VALDEZ (LIMONES)"]
[]
[null,null,null,null,null,null,null,null,null,null,null,null,null,null,null,null,"PR_ESMERALDAS_ESMERALDAS"]
[null,null,null,null,null,null,null,null,null,null,null,null,null,null,null,null,"CAMARONES"]
[null,null,null,null,null,null,null,null,null,null,null,null,null,null,null,null,"CHINCA"]
[null,null,null,null,null,null,null,null,null,null,null,null,null,null,null,null,"CRNEL. CARLOS CONCHA TORRES"]
[null,null,null,null,null,null,null,null,null,null,null,null,null,null,null,null,"ESMERALDAS"]
[null,null,null,null,null,null,null,null,null,null,null,null,null,null,null,null,"MAJUA"]
[null,null,null,null,null,null,null,null,null,null,null,null,null,null,null,null,"SAN MATEO"]
[null,null,null,null,null,null,null,null,null,null,null,null,null,null,null,null,"TABIAZO"]
[null,null,null,null,null,null,null,null,null,null,null,null,null,null,null,null,"TACHINA"]
[null,null,null,null,null,null,null,null,null,null,null,null,null,null,null,null,"VUELTA LARGA"]
[]
[null,null,null,null,null,null,null,null,null,null,null,null,null,null,null,null,"PR_ESMERALDAS_LA_CONCORDIA"]
[null,null,null,null,null,null,null,null,null,null,null,null,null,null,null,null,"LA CONCORDIA"]
[]
[null,null,null,null,null,null,null,null,null,null,null,null,null,null,null,null,"PR_ESMERALDAS_MUISNE"]
[null,null,null,null,null,null,null,null,null,null,null,null,null,null,null,null,"BOLIVAR"]
[null,null,null,null,null,null,null,null,null,null,null,null,null,null,null,null,"DAULE"]
[null,null,null,null,null,null,null,null,null,null,null,null,null,null,null,null,"GALERA"]
[null,null,null,null,null,null,null,null,null,null,null,null,null,null,null,null,"MUISNE"]
[null,null,null,null,null,null,null,null,null,null,null,null,null,null,null,null,"QUINGUE (OLMEDO PERDOMO"]
[null,null,null,null,null,null,null,null,null,null,null,null,null,null,null,null,"SALIMA"]
[null,null,null,null,null,null,null,null,null,null,null,null,null,null,null,null,"SAN FRANCISCO"]
[null,null,null,null,null,null,null,null,null,null,null,null,null,null,null,null,"SAN GREGORIO"]
[null,null,null,null,null,null,null,null,null,null,null,null,null,null,null,null,"SAN JOSE DE CHAMANGA"]
[]
[null,null,null,null,null,null,null,null,null,null,null,null,null,null,null,null,"PR_ESMERALDAS_QUININDE"]
[null,null,null,null,null,null,null,null,null,null,null,null,null,null,null,null,"CHURA (CHANCAMA)"]
[null,null,null,null,null,null,null,null,null,null,null,null,null,null,null,null,"CUBE"]
[null,null,null,null,null,null,null,null,null,null,null,null,null,null,null,null,"LA UNION"]
[null,null,null,null,null,null,null,null,null,null,null,null,null,null,null,null,"MALIMPIA"]
[null,null,null,null,null,null,null,null,null,null,null,null,null,null,null,null,"ROSA ZARATE (QUININDE)"]
[null,null,null,null,null,null,null,null,null,null,null,null,null,null,null,null,"VICHE"]
[]
[null,null,null,null,null,null,null,null,null,null,null,null,null,null,null,null,"PR_ESMERALDAS_RIOVERDE"]
[null,null,null,null,null,null,null,null,null,null,null,null,null,null,null,null,"CHONTADURO"]
[null,null,null,null,null,null,null,null,null,null,null,null,null,null,null,null,"CHUMUNDE"]
[null,null,null,null,null,null,null,null,null,null,null,null,null,null,null,null,"LAGARTO"]
[null,null,null,null,null,null,null,null,null,null,null,null,null,null,null,null,"MONTALVO"]
[null,null,null,null,null,null,null,null,null,null,null,null,null,null,null,null,"RIOVERDE"]
[null,null,null,null,null,null,null,null,null,null,null,null,null,null,null,null,"ROCAFUERTE"]
[]
[null,null,null,null,null,null,null,null,null,null,null,null,null,null,null,null,"PR_ESMERALDAS_SAN_LORENZO"]
[null,null,null,null,null,null,null,null,null,null,null,null,null,null,null,null,"5 DE JUNIO"]
[null,null,null,null,null,null,null,null,null,null,null,null,null,null,null,null,"ALTO TAMBO"]
[null,null,null,null,null,null,null,null,null,null,null,null,null,null,null,null,"ANCON (PICHANGAL)"]
[null,null,null,null,null,null,null,null,null,null,null,null,null,null,null,null,"CALDERON"]
[null,null,null,null,null,null,null,null,null,null,null,null,null,null,null,null,"CARONDELET"]
[null,null,null,null,null,null,null,null,null,null,null,null,null,null,null,null,"CONCEPCION"]
[null,null,null,null,null,null,null,null,null,null,null,null,null,null,null,null,"MATAJE"]
[null,null,null,null,null,null,null,null,null,null,null,null,null,null,null,null,"SAN JAVIER DE CACHAVI"]
[null,null,null,null,null,null,null,null,null,null,null,null,null,null,null,null,"SAN LORENZO"]
[null,null,null,null,null,null,null,null,null,null,null,null,null,null,null,null,"SANTA RITA"]
[null,null,null,null,null,null,null,null,null,null,null,null,null,null,null,null,"TAMBILLO"]
[null,null,null,null,null,null,null,null,null,null,null,null,null,null,null,null,"TULULBI"]
[null,null,null,null,null,null,null,null,null,null,null,null,null,null,null,null,"URBINA"]
[]
[null,null,null,null,null,null,null,null,null,null,null,null,null,null,null,null,"PR_GALÁPAGOS_ISABELA"]
[null,null,null,null,null,null,null,null,null,null,null,null,null,null,null,null,"PUERTO VILLAMIL"]
[null,null,null,null,null,null,null,null,null,null,null,null,null,null,null,null,"TOMAS DE BERLANGA"]
[]
[null,null,null,null,null,null,null,null,null,null,null,null,null,null,null,null,"PR_GALÁPAGOS_SAN_CRISTOBAL"]
[null,null,null,null,null,null,null,null,null,null,null,null,null,null,null,null,"EL PROGRESO"]
[null,null,null,null,null,null,null,null,null,null,null,null,null,null,null,null,"ISLA SANTA MARIA (FLOREANA)"]
[null,null,null,null,null,null,null,null,null,null,null,null,null,null,null,null,"PUERTO BAQUERIZO MORENO"]
[]
[null,null,null,null,null,null,null,null,null,null,null,null,null,null,null,null,"PR_GALÁPAGOS_SANTA_CRUZ"]
[null,null,null,null,null,null,null,null,null,null,null,null,null,null,null,null,"BELLAVISTA"]
[null,null,null,null,null,null,null,null,null,null,null,null,null,null,null,null,"PUERTO AYORA"]
[null,null,null,null,null,null,null,null,null,null,null,null,null,null,null,null,"SANTA ROSA"]
[]
[null,null,null,null,null,null,null,null,null,null,null,null,null,null,null,null,"PR_GUAYAS_ALFREDO_BAQUERIZO_MORENO"]
[null,null,null,null,null,null,null,null,null,null,null,null,null,null,null,null,"ALFREDO BAQUERIZO MORENO"]
[]
[null,null,null,null,null,null,null,null,null,null,null,null,null,null,null,null,"PR_GUAYAS_BALAO"]
[null,null,null,null,null,null,null,null,null,null,null,null,null,null,null,null,"BALAO"]
[]
[null,null,null,null,null,null,null,null,null,null,null,null,null,null,null,null,"PR_GUAYAS_BALZAR"]
[null,null,null,null,null,null,null,null,null,null,null,null,null,null,null,null,"BALZAR"]
[]
[null,null,null,null,null,null,null,null,null,null,null,null,null,null,null,null,"PR_GUAYAS_COLIMES"]
[null,null,null,null,null,null,null,null,null,null,null,null,null,null,null,null,"COLIMES"]
[null,null,null,null,null,null,null,null,null,null,null,null,null,null,null,null,"SAN JACINTO"]
[]
[null,null,null,null,null,null,null,null,null,null,null,null,null,null,null,null,"PR_GUAYAS_CORONEL_MARCELINO_MARIDUEÑA"]
[null,null,null,null,null,null,null,null,null,null,null,null,null,null,null,null,"CORONEL MARCELINO MARIDUEÑA"]
[]
[null,null,null,null,null,null,null,null,null,null,null,null,null,null,null,null,"PR_GUAYAS_DAULE"]
[null,null,null,null,null,null,null,null,null,null,null,null,null,null,null,null,"DAULE"]
[null,null,null,null,null,null,null,null,null,null,null,null,null,null,null,null,"JUAN BAUTISTA AGUIRRE"]
[null,null,null,null,null,null,null,null,null,null,null,null,null,null,null,null,"LAUREL"]
[null,null,null,null,null,null,null,null,null,null,null,null,null,null,null,null,"LIMONAL"]
[null,null,null,null,null,null,null,null,null,null,null,null,null,null,null,null,"LOS LOJAS"]
[]
[null,null,null,null,null,null,null,null,null,null,null,null,null,null,null,null,"PR_GUAYAS_DURAN"]
[null,null,null,null,null,null,null,null,null,null,null,null,null,null,null,null,"ELOY ALFARO (DURAN)"]
[]
[null,null,null,null,null,null,null,null,null,null,null,null,null,null,null,null,"PR_GUAYAS_EL_EMPALME"]
[null,null,null,null,null,null,null,null,null,null,null,null,null,null,null,null,"EL ROSARIO"]
[null,null,null,null,null,null,null,null,null,null,null,null,null,null,null,null,"GUAYAS (PUEBLO NUEVO)"]
[null,null,null,null,null,null,null,null,null,null,null,null,null,null,null,null,"VELASCO IBARRA"]
[]
[null,null,null,null,null,null,null,null,null,null,null,null,null,null,null,null,"PR_GUAYAS_EL_TRIUNFO"]
[null,null,null,null,null,null,null,null,null,null,null,null,null,null,null,null,"EL TRIUNFO"]
[]
[null,null,null,null,null,null,null,null,null,null,null,null,null,null,null,null,"PR_GUAYAS_GENERAL_ANTONIO_ELIZALDE"]
[null,null,null,null,null,null,null,null,null,null,null,null,null,null,null,null,"GENERAL ANTONIO ELIZALDE"]
[]
[null,null,null,null,null,null,null,null,null,null,null,null,null,null,null,null,"PR_GUAYAS_GUAYAQUIL"]
[null,null,null,null,null,null,null,null,null,null,null,null,null,null,null,null,"GUAYAQUIL"]
[null,null,null,null,null,null,null,null,null,null,null,null,null,null,null,null,"JUAN GOMEZ RENDON (PROGR"]
[null,null,null,null,null,null,null,null,null,null,null,null,null,null,null,null,"MORRO"]
[null,null,null,null,null,null,null,null,null,null,null,null,null,null,null,null,"POSORJA"]
[null,null,null,null,null,null,null,null,null,null,null,null,null,null,null,null,"PUNA"]
[null,null,null,null,null,null,null,null,null,null,null,null,null,null,null,null,"TENGUEL"]
[]
[null,null,null,null,null,null,null,null,null,null,null,null,null,null,null,null,"PR_GUAYAS_ISIDRO_AYORA"]
[null,null,null,null,null,null,null,null,null,null,null,null,null,null,null,null,"ISIDRO AYORA"]
[]
[null,null,null,null,null,null,null,null,null,null,null,null,null,null,null,null,"PR_GUAYAS_LOMAS_DE_SARGENTILLO"]
[null,null,null,null,null,null,null,null,null,null,null,null,null,null,null,null,"LOMAS DE SARGENTILLO"]
[]
[null,null,null,null,null,null,null,null,null,null,null,null,null,null,null,null,"PR_GUAYAS_MILAGRO"]
[null,null,null,null,null,null,null,null,null,null,null,null,null,null,null,null,"CHOBO"]
[null,null,null,null,null,null,null,null,null,null,null,null,null,null,null,null,"MARISCAL SUCRE (HUAQUES)"]
[null,null,null,null,null,null,null,null,null,null,null,null,null,null,null,null,"MILAGRO"]
[null,null,null,null,null,null,null,null,null,null,null,null,null,null,null,null,"ROBERTO ASTUDILLO"]
[]
[null,null,null,null,null,null,null,null,null,null,null,null,null,null,null,null,"PR_GUAYAS_NARANJAL"]
[null,null,null,null,null,null,null,null,null,null,null,null,null,null,null,null,"JESUS MARIA"]
[null,null,null,null,null,null,null,null,null,null,null,null,null,null,null,null,"NARANJAL"]
[null,null,null,null,null,null,null,null,null,null,null,null,null,null,null,null,"SAN CARLOS"]
[null,null,null,null,null,null,null,null,null,null,null,null,null,null,null,null,"SANTA ROSA DE FLANDES"]
[null,null,null,null,null,null,null,null,null,null,null,null,null,null,null,null,"TAURA"]
[]
[null,null,null,null,null,null,null,null,null,null,null,null,null,null,null,null,"PR_GUAYAS_NARANJITO"]
[null,null,null,null,null,null,null,null,null,null,null,null,null,null,null,null,"NARANJITO"]
[]
[null,null,null,null,null,null,null,null,null,null,null,null,null,null,null,null,"PR_GUAYAS_NOBOL"]
[null,null,null,null,null,null,null,null,null,null,null,null,null,null,null,null,"NARCISA DE JESUS"]
[]
[null,null,null,null,null,null,null,null,null,null,null,null,null,null,null,null,"PR_GUAYAS_PALESTINA"]
[null,null,null,null,null,null,null,null,null,null,null,null,null,null,null,null,"PALESTINA"]
[]
[null,null,null,null,null,null,null,null,null,null,null,null,null,null,null,null,"PR_GUAYAS_PEDRO_CARBO"]
[null,null,null,null,null,null,null,null,null,null,null,null,null,null,null,null,"PEDRO CARBO"]
[null,null,null,null,null,null,null,null,null,null,null,null,null,null,null,null,"SABANILLA"]
[null,null,null,null,null,null,null,null,null,null,null,null,null,null,null,null,"VALLE DE LA VIRGEN"]
[]
[null,null,null,null,null,null,null,null,null,null,null,null,null,null,null,null,"PR_GUAYAS_PLAYAS"]
[null,null,null,null,null,null,null,null,null,null,null,null,null,null,null,null,"GENERAL VILLAMIL"]
[]
[null,null,null,null,null,null,null,null,null,null,null,null,null,null,null,null,"PR_GUAYAS_SAMBORONDON"]
[null,null,null,null,null,null,null,null,null,null,null,null,null,null,null,null,"SAMBORONDON"]
[null,null,null,null,null,null,null,null,null,null,null,null,null,null,null,null,"TARIFA"]
[]
[null,null,null,null,null,null,null,null,null,null,null,null,null,null,null,null,"PR_GUAYAS_SANTA_LUCIA"]
[null,null,null,null,null,null,null,null,null,null,null,null,null,null,null,null,"SANTA LUCIA"]
[]
[null,null,null,null,null,null,null,null,null,null,null,null,null,null,null,null,"PR_GUAYAS_SIMON_BOLIVAR"]
[null,null,null,null,null,null,null,null,null,null,null,null,null,null,null,null,"CRNEL.LORENZO DE GARAICOA"]
[null,null,null,null,null,null,null,null,null,null,null,null,null,null,null,null,"SIMON BOLIVAR"]
[]
[null,null,null,null,null,null,null,null,null,null,null,null,null,null,null,null,"PR_GUAYAS_URBINA_JADO"]
[null,null,null,null,null,null,null,null,null,null,null,null,null,null,null,null,"EL SALITRE (LAS RAMAS)"]
[null,null,null,null,null,null,null,null,null,null,null,null,null,null,null,null,"GENERAL VERNAZA"]
[null,null,null,null,null,null,null,null,null,null,null,null,null,null,null,null,"JUNQUILLAL"]
[null,null,null,null,null,null,null,null,null,null,null,null,null,null,null,null,"LA VICTORIA (ÑAUZA)"]
[]
[null,null,null,null,null,null,null,null,null,null,null,null,null,null,null,null,"PR_GUAYAS_YAGUACHI"]
[null,null,null,null,null,null,null,null,null,null,null,null,null,null,null,null,"GRAL. PEDRO J. MONTERO"]
[null,null,null,null,null,null,null,null,null,null,null,null,null,null,null,null,"VIRGEN DE FATIMA"]
[null,null,null,null,null,null,null,null,null,null,null,null,null,null,null,null,"YAGUACHI NUEVO"]
[null,null,null,null,null,null,null,null,null,null,null,null,null,null,null,null,"YAGUACHI VIEJO (CONE)"]
[]
[null,null,null,null,null,null,null,null,null,null,null,null,null,null,null,null,"PR_IMBABURA_ANTONIO_ANTE"]
[null,null,null,null,null,null,null,null,null,null,null,null,null,null,null,null,"ATUNTAQUI"]
[null,null,null,null,null,null,null,null,null,null,null,null,null,null,null,null,"IMBAYA"]
[null,null,null,null,null,null,null,null,null,null,null,null,null,null,null,null,"SAN FRANCISCO DE NATABUE"]
[null,null,null,null,null,null,null,null,null,null,null,null,null,null,null,null,"SAN JOSE DE CHALTURA"]
[null,null,null,null,null,null,null,null,null,null,null,null,null,null,null,null,"SAN ROQUE"]
[]
[null,null,null,null,null,null,null,null,null,null,null,null,null,null,null,null,"PR_IMBABURA_COTACACHI"]
[null,null,null,null,null,null,null,null,null,null,null,null,null,null,null,null,"6 DE JULIO DE CUELLAJE"]
[null,null,null,null,null,null,null,null,null,null,null,null,null,null,null,null,"APUELA"]
[null,null,null,null,null,null,null,null,null,null,null,null,null,null,null,null,"COTACACHI"]
[null,null,null,null,null,null,null,null,null,null,null,null,null,null,null,null,"GARCIA MORENO"]
[null,null,null,null,null,null,null,null,null,null,null,null,null,null,null,null,"IMANTAG"]
[null,null,null,null,null,null,null,null,null,null,null,null,null,null,null,null,"PEÑAHERRERA"]
[null,null,null,null,null,null,null,null,null,null,null,null,null,null,null,null,"PLAZA GUTIERREZ"]
[null,null,null,null,null,null,null,null,null,null,null,null,null,null,null,null,"QUIROGA"]
[null,null,null,null,null,null,null,null,null,null,null,null,null,null,null,null,"VACAS GALINDO (EL CHURO)"]
[]
[null,null,null,null,null,null,null,null,null,null,null,null,null,null,null,null,"PR_IMBABURA_IBARRA"]
[null,null,null,null,null,null,null,null,null,null,null,null,null,null,null,null,"AMBUQUI"]
[null,null,null,null,null,null,null,null,null,null,null,null,null,null,null,null,"ANGOCHAGUA"]
[null,null,null,null,null,null,null,null,null,null,null,null,null,null,null,null,"CAROLINA"]
[null,null,null,null,null,null,null,null,null,null,null,null,null,null,null,null,"IBARRA"]
[null,null,null,null,null,null,null,null,null,null,null,null,null,null,null,null,"LA ESPERANZA"]
[null,null,null,null,null,null,null,null,null,null,null,null,null,null,null,null,"LITA"]
[null,null,null,null,null,null,null,null,null,null,null,null,null,null,null,null,"SALINAS"]
[null,null,null,null,null,null,null,null,null,null,null,null,null,null,null,null,"SAN ANTONIO"]
[]
[null,null,null,null,null,null,null,null,null,null,null,null,null,null,null,null,"PR_IMBABURA_OTAVALO"]
[null,null,null,null,null,null,null,null,null,null,null,null,null,null,null,null,"DR. MIGUEL EGAS CABEZAS"]
[null,null,null,null,null,null,null,null,null,null,null,null,null,null,null,null,"EUGENIO ESPEJO (CALPAQUI)"]
[null,null,null,null,null,null,null,null,null,null,null,null,null,null,null,null,"GONZALEZ SUAREZ"]
[null,null,null,null,null,null,null,null,null,null,null,null,null,null,null,null,"OTAVALO"]
[null,null,null,null,null,null,null,null,null,null,null,null,null,null,null,null,"PATAQUI"]
[null,null,null,null,null,null,null,null,null,null,null,null,null,null,null,null,"SAN JOSE DE QUICHINCHE"]
[null,null,null,null,null,null,null,null,null,null,null,null,null,null,null,null,"SAN JUAN DE ILUMAN"]
[null,null,null,null,null,null,null,null,null,null,null,null,null,null,null,null,"SAN PABLO"]
[null,null,null,null,null,null,null,null,null,null,null,null,null,null,null,null,"SAN RAFAEL"]
[null,null,null,null,null,null,null,null,null,null,null,null,null,null,null,null,"SELVA ALEGRE"]
[]
[null,null,null,null,null,null,null,null,null,null,null,null,null,null,null,null,"PR_IMBABURA_PIMAMPIRO"]
[null,null,null,null,null,null,null,null,null,null,null,null,null,null,null,null,"CHUGA"]
[null,null,null,null,null,null,null,null,null,null,null,null,null,null,null,null,"MARIANO ACOSTA"]
[null,null,null,null,null,null,null,null,null,null,null,null,null,null,null,null,"PIMAMPIRO"]
[null,null,null,null,null,null,null,null,null,null,null,null,null,null,null,null,"SAN FRANCISCO DE SIGSIPA"]
[]
[null,null,null,null,null,null,null,null,null,null,null,null,null,null,null,null,"PR_IMBABURA_SAN_MIGUEL_DE_URCUQUI"]
[null,null,null,null,null,null,null,null,null,null,null,null,null,null,null,null,"CAHUASQUI"]
[null,null,null,null,null,null,null,null,null,null,null,null,null,null,null,null,"LA MERCED DE BUENOS AIRES"]
[null,null,null,null,null,null,null,null,null,null,null,null,null,null,null,null,"PABLO ARENAS"]
[null,null,null,null,null,null,null,null,null,null,null,null,null,null,null,null,"SAN BLAS"]
[null,null,null,null,null,null,null,null,null,null,null,null,null,null,null,null,"TUMBABIRO"]
[null,null,null,null,null,null,null,null,null,null,null,null,null,null,null,null,"URCUQUI"]
[]
[null,null,null,null,null,null,null,null,null,null,null,null,null,null,null,null,"PR_LOJA_CALVAS"]
[null,null,null,null,null,null,null,null,null,null,null,null,null,null,null,null,"CARIAMANGA"]
[null,null,null,null,null,null,null,null,null,null,null,null,null,null,null,null,"COLAISACA"]
[null,null,null,null,null,null,null,null,null,null,null,null,null,null,null,null,"EL LUCERO"]
[null,null,null,null,null,null,null,null,null,null,null,null,null,null,null,null,"SANGILLIN"]
[null,null,null,null,null,null,null,null,null,null,null,null,null,null,null,null,"UTUANA"]
[]
[null,null,null,null,null,null,null,null,null,null,null,null,null,null,null,null,"PR_LOJA_CATAMAYO"]
[null,null,null,null,null,null,null,null,null,null,null,null,null,null,null,null,"CATAMAYO (LA TOMA)"]
[null,null,null,null,null,null,null,null,null,null,null,null,null,null,null,null,"EL TAMBO"]
[null,null,null,null,null,null,null,null,null,null,null,null,null,null,null,null,"GUAYQUICHUMA"]
[null,null,null,null,null,null,null,null,null,null,null,null,null,null,null,null,"SAN PEDRO DE LA BENDITA"]
[null,null,null,null,null,null,null,null,null,null,null,null,null,null,null,null,"ZAMBI"]
[]
[null,null,null,null,null,null,null,null,null,null,null,null,null,null,null,null,"PR_LOJA_CELICA"]
[null,null,null,null,null,null,null,null,null,null,null,null,null,null,null,null,"CELICA"]
[null,null,null,null,null,null,null,null,null,null,null,null,null,null,null,null,"CRUZPAMBA"]
[null,null,null,null,null,null,null,null,null,null,null,null,null,null,null,null,"POZUL (SAN JUAN DE POZUL"]
[null,null,null,null,null,null,null,null,null,null,null,null,null,null,null,null,"SABANILLA"]
[null,null,null,null,null,null,null,null,null,null,null,null,null,null,null,null,"TNTE. MAXIMILIANO RODRIG"]
[]
[null,null,null,null,null,null,null,null,null,null,null,null,null,null,null,null,"PR_LOJA_CHAGUARPAMBA"]
[null,null,null,null,null,null,null,null,null,null,null,null,null,null,null,null,"AMARILLOS"]
[null,null,null,null,null,null,null,null,null,null,null,null,null,null,null,null,"BUENAVISTA"]
[null,null,null,null,null,null,null,null,null,null,null,null,null,null,null,null,"CHAGUARPAMBA"]
[null,null,null,null,null,null,null,null,null,null,null,null,null,null,null,null,"EL ROSARIO"]
[null,null,null,null,null,null,null,null,null,null,null,null,null,null,null,null,"SANTA RUFINA"]
[]
[null,null,null,null,null,null,null,null,null,null,null,null,null,null,null,null,"PR_LOJA_ESPINDOLA"]
[null,null,null,null,null,null,null,null,null,null,null,null,null,null,null,null,"27 DE ABRIL"]
[null,null,null,null,null,null,null,null,null,null,null,null,null,null,null,null,"AMALUZA"]
[null,null,null,null,null,null,null,null,null,null,null,null,null,null,null,null,"BELLAVISTA"]
[null,null,null,null,null,null,null,null,null,null,null,null,null,null,null,null,"EL AIRO"]
[null,null,null,null,null,null,null,null,null,null,null,null,null,null,null,null,"EL INGENIO"]
[null,null,null,null,null,null,null,null,null,null,null,null,null,null,null,null,"JIMBURA"]
[null,null,null,null,null,null,null,null,null,null,null,null,null,null,null,null,"SANTA TERESITA"]
[]
[null,null,null,null,null,null,null,null,null,null,null,null,null,null,null,null,"PR_LOJA_GONZANAMA"]
[null,null,null,null,null,null,null,null,null,null,null,null,null,null,null,null,"CHANGAIMINA (LA LIBERTAD"]
[null,null,null,null,null,null,null,null,null,null,null,null,null,null,null,null,"GONZANAMA"]
[null,null,null,null,null,null,null,null,null,null,null,null,null,null,null,null,"NAMBACOLA"]
[null,null,null,null,null,null,null,null,null,null,null,null,null,null,null,null,"PURUNUMA (EGUIGUREN)"]
[null,null,null,null,null,null,null,null,null,null,null,null,null,null,null,null,"SACAPALCA"]
[]
[null,null,null,null,null,null,null,null,null,null,null,null,null,null,null,null,"PR_LOJA_LOJA"]
[null,null,null,null,null,null,null,null,null,null,null,null,null,null,null,null,"CHANTACO"]
[null,null,null,null,null,null,null,null,null,null,null,null,null,null,null,null,"CHUQUIRIBAMBA"]
[null,null,null,null,null,null,null,null,null,null,null,null,null,null,null,null,"EL CISNE"]
[null,null,null,null,null,null,null,null,null,null,null,null,null,null,null,null,"GUALEL"]
[null,null,null,null,null,null,null,null,null,null,null,null,null,null,null,null,"JIMBILLA"]
[null,null,null,null,null,null,null,null,null,null,null,null,null,null,null,null,"LOJA"]
[null,null,null,null,null,null,null,null,null,null,null,null,null,null,null,null,"MALACATOS (VALLADOLID)"]
[null,null,null,null,null,null,null,null,null,null,null,null,null,null,null,null,"QUINARA"]
[null,null,null,null,null,null,null,null,null,null,null,null,null,null,null,null,"SAN LUCAS"]
[null,null,null,null,null,null,null,null,null,null,null,null,null,null,null,null,"SAN PEDRO DE VILCABAMBA"]
[null,null,null,null,null,null,null,null,null,null,null,null,null,null,null,null,"SANTIAGO"]
[null,null,null,null,null,null,null,null,null,null,null,null,null,null,null,null,"TAQUIL (MIGUEL RIOFRIO)"]
[null,null,null,null,null,null,null,null,null,null,null,null,null,null,null,null,"VILCABAMBA (VICTORIA)"]
[null,null,null,null,null,null,null,null,null,null,null,null,null,null,null,null,"YANGANA (ARSENIO CASTILLO)"]
[]
[null,null,null,null,null,null,null,null,null,null,null,null,null,null,null,null,"PR_LOJA_MACARA"]
[null,null,null,null,null,null,null,null,null,null,null,null,null,null,null,null,"LA VICTORIA"]
[null,null,null,null,null,null,null,null,null,null,null,null,null,null,null,null,"LARAMA"]
[null,null,null,null,null,null,null,null,null,null,null,null,null,null,null,null,"MACARA"]
[null,null,null,null,null,null,null,null,null,null,null,null,null,null,null,null,"SABIANGO (LA CAPILLA)"]
[]
[null,null,null,null,null,null,null,null,null,null,null,null,null,null,null,null,"PR_LOJA_OLMEDO"]
[null,null,null,null,null,null,null,null,null,null,null,null,null,null,null,null,"LA TINGUE"]
[null,null,null,null,null,null,null,null,null,null,null,null,null,null,null,null,"OLMEDO"]
[]
[null,null,null,null,null,null,null,null,null,null,null,null,null,null,null,null,"PR_LOJA_PALTAS"]
[null,null,null,null,null,null,null,null,null,null,null,null,null,null,null,null,"CANGONAMA"]
[null,null,null,null,null,null,null,null,null,null,null,null,null,null,null,null,"CASANGA"]
[null,null,null,null,null,null,null,null,null,null,null,null,null,null,null,null,"CATACOCHA"]
[null,null,null,null,null,null,null,null,null,null,null,null,null,null,null,null,"GUACHANAMA"]
[null,null,null,null,null,null,null,null,null,null,null,null,null,null,null,null,"LAURO GUERRERO"]
[null,null,null,null,null,null,null,null,null,null,null,null,null,null,null,null,"ORIANGA"]
[null,null,null,null,null,null,null,null,null,null,null,null,null,null,null,null,"SAN ANTONIO"]
[null,null,null,null,null,null,null,null,null,null,null,null,null,null,null,null,"YAMANA"]
[]
[null,null,null,null,null,null,null,null,null,null,null,null,null,null,null,null,"PR_LOJA_PINDAL"]
[null,null,null,null,null,null,null,null,null,null,null,null,null,null,null,null,"12 DE DICIEMBRE"]
[null,null,null,null,null,null,null,null,null,null,null,null,null,null,null,null,"CHAQUINAL"]
[null,null,null,null,null,null,null,null,null,null,null,null,null,null,null,null,"PINDAL"]
[]
[null,null,null,null,null,null,null,null,null,null,null,null,null,null,null,null,"PR_LOJA_PUYANGO"]
[null,null,null,null,null,null,null,null,null,null,null,null,null,null,null,null,"ALAMOR"]
[null,null,null,null,null,null,null,null,null,null,null,null,null,null,null,null,"CIANO"]
[null,null,null,null,null,null,null,null,null,null,null,null,null,null,null,null,"EL ARENAL"]
[null,null,null,null,null,null,null,null,null,null,null,null,null,null,null,null,"EL LIMO (MARIANA DE JESUS)"]
[null,null,null,null,null,null,null,null,null,null,null,null,null,null,null,null,"MERCADILLO"]
[null,null,null,null,null,null,null,null,null,null,null,null,null,null,null,null,"VICENTINO"]
[]
[null,null,null,null,null,null,null,null,null,null,null,null,null,null,null,null,"PR_LOJA_QUILANGA"]
[null,null,null,null,null,null,null,null,null,null,null,null,null,null,null,null,"FUNDOCHAMBA"]
[null,null,null,null,null,null,null,null,null,null,null,null,null,null,null,null,"QUILANGA"]
[null,null,null,null,null,null,null,null,null,null,null,null,null,null,null,null,"SAN ANTONIO DE LAS ARADAS"]
[]
[null,null,null,null,null,null,null,null,null,null,null,null,null,null,null,null,"PR_LOJA_SARAGURO"]
[null,null,null,null,null,null,null,null,null,null,null,null,null,null,null,null,"EL PARAISO DE CELEN"]
[null,null,null,null,null,null,null,null,null,null,null,null,null,null,null,null,"EL TABLON"]
[null,null,null,null,null,null,null,null,null,null,null,null,null,null,null,null,"LLUZHAPA"]
[null,null,null,null,null,null,null,null,null,null,null,null,null,null,null,null,"MANU"]
[null,null,null,null,null,null,null,null,null,null,null,null,null,null,null,null,"SAN ANTONIO DE QUMBE"]
[null,null,null,null,null,null,null,null,null,null,null,null,null,null,null,null,"SAN PABLO DE TENTA"]
[null,null,null,null,null,null,null,null,null,null,null,null,null,null,null,null,"SAN SEBASTIAN DE YULUC"]
[null,null,null,null,null,null,null,null,null,null,null,null,null,null,null,null,"SARAGURO"]
[null,null,null,null,null,null,null,null,null,null,null,null,null,null,null,null,"SELVA ALEGRE"]
[null,null,null,null,null,null,null,null,null,null,null,null,null,null,null,null,"SUMAYPAMBA"]
[null,null,null,null,null,null,null,null,null,null,null,null,null,null,null,null,"URDANETA (PAQUISHAPA)"]
[]
[null,null,null,null,null,null,null,null,null,null,null,null,null,null,null,null,"PR_LOJA_SOZORANGA"]
[null,null,null,null,null,null,null,null,null,null,null,null,null,null,null,null,"NUEVA FATIMA"]
[null,null,null,null,null,null,null,null,null,null,null,null,null,null,null,null,"SOZORANGA"]
[null,null,null,null,null,null,null,null,null,null,null,null,null,null,null,null,"TACAMOROS"]
[]
[null,null,null,null,null,null,null,null,null,null,null,null,null,null,null,null,"PR_LOJA_ZAPOTILLO"]
[null,null,null,null,null,null,null,null,null,null,null,null,null,null,null,null,"BOLASPAMBA"]
[null,null,null,null,null,null,null,null,null,null,null,null,null,null,null,null,"CAZADEROS"]
[null,null,null,null,null,null,null,null,null,null,null,null,null,null,null,null,"GARZAREAL"]
[null,null,null,null,null,null,null,null,null,null,null,null,null,null,null,null,"LIMONES"]
[null,null,null,null,null,null,null,null,null,null,null,null,null,null,null,null,"PALETILLAS"]
[null,null,null,null,null,null,null,null,null,null,null,null,null,null,null,null,"ZAPOTILLO"]
[]
[null,null,null,null,null,null,null,null,null,null,null,null,null,null,null,null,"PR_LOS_RIOS_BABA"]
[null,null,null,null,null,null,null,null,null,null,null,null,null,null,null,null,"BABA"]
[null,null,null,null,null,null,null,null,null,null,null,null,null,null,null,null,"GUARE"]
[null,null,null,null,null,null,null,null,null,null,null,null,null,null,null,null,"ISLA DE BEJUCAL"]
[]
[null,null,null,null,null,null,null,null,null,null,null,null,null,null,null,null,"PR_LOS_RIOS_BABAHOYO"]
[null,null,null,null,null,null,null,null,null,null,null,null,null,null,null,null,"BABAHOYO"]
[null,null,null,null,null,null,null,null,null,null,null,null,null,null,null,null,"CARACOL"]
[null,null,null,null,null,null,null,null,null,null,null,null,null,null,null,null,"FEBRES CORDERO (LAS JUNTAS)"]
[null,null,null,null,null,null,null,null,null,null,null,null,null,null,null,null,"LA UNION"]
[null,null,null,null,null,null,null,null,null,null,null,null,null,null,null,null,"PIMOCHA"]
[]
[null,null,null,null,null,null,null,null,null,null,null,null,null,null,null,null,"PR_LOS_RIOS_BUENA_FE"]
[null,null,null,null,null,null,null,null,null,null,null,null,null,null,null,null,"PATRICIA PILAR"]
[null,null,null,null,null,null,null,null,null,null,null,null,null,null,null,null,"SAN JACINTO DE BUENA FE"]
[]
[null,null,null,null,null,null,null,null,null,null,null,null,null,null,null,null,"PR_LOS_RIOS_MOCACHE"]
[null,null,null,null,null,null,null,null,null,null,null,null,null,null,null,null,"MOCACHE"]
[]
[null,null,null,null,null,null,null,null,null,null,null,null,null,null,null,null,"PR_LOS_RIOS_MONTALVO"]
[null,null,null,null,null,null,null,null,null,null,null,null,null,null,null,null,"MONTALVO"]
[]
[null,null,null,null,null,null,null,null,null,null,null,null,null,null,null,null,"PR_LOS_RIOS_PALENQUE"]
[null,null,null,null,null,null,null,null,null,null,null,null,null,null,null,null,"PALENQUE"]
[]
[null,null,null,null,null,null,null,null,null,null,null,null,null,null,null,null,"PR_LOS_RIOS_PUEBLOVIEJO"]
[null,null,null,null,null,null,null,null,null,null,null,null,null,null,null,null,"PUEBLOVIEJO"]
[null,null,null,null,null,null,null,null,null,null,null,null,null,null,null,null,"PUERTO PECHICHE"]
[null,null,null,null,null,null,null,null,null,null,null,null,null,null,null,null,"SAN JUAN"]
[]
[null,null,null,null,null,null,null,null,null,null,null,null,null,null,null,null,"PR_LOS_RIOS_QUEVEDO"]
[null,null,null,null,null,null,null,null,null,null,null,null,null,null,null,null,"LA ESPERANZA"]
[null,null,null,null,null,null,null,null,null,null,null,null,null,null,null,null,"QUEVEDO"]
[null,null,null,null,null,null,null,null,null,null,null,null,null,null,null,null,"SAN CARLOS"]
[]
[null,null,null,null,null,null,null,null,null,null,null,null,null,null,null,null,"PR_LOS_RIOS_QUINSALOMA"]
[null,null,null,null,null,null,null,null,null,null,null,null,null,null,null,null,"QUINSALOMA"]
[]
[null,null,null,null,null,null,null,null,null,null,null,null,null,null,null,null,"PR_LOS_RIOS_URDANETA"]
[null,null,null,null,null,null,null,null,null,null,null,null,null,null,null,null,"CATARAMA"]
[null,null,null,null,null,null,null,null,null,null,null,null,null,null,null,null,"RICAURTE"]
[]
[null,null,null,null,null,null,null,null,null,null,null,null,null,null,null,null,"PR_LOS_RIOS_VALENCIA"]
[null,null,null,null,null,null,null,null,null,null,null,null,null,null,null,null,"VALENCIA"]
[]
[null,null,null,null,null,null,null,null,null,null,null,null,null,null,null,null,"PR_LOS_RIOS_VENTANAS"]
[null,null,null,null,null,null,null,null,null,null,null,null,null,null,null,null,"VENTANAS"]
[null,null,null,null,null,null,null,null,null,null,null,null,null,null,null,null,"ZAPOTAL"]
[]
[null,null,null,null,null,null,null,null,null,null,null,null,null,null,null,null,"PR_LOS_RIOS_VINCES"]
[null,null,null,null,null,null,null,null,null,null,null,null,null,null,null,null,"ANTONIO SOTOMAYOR"]
[null,null,null,null,null,null,null,null,null,null,null,null,null,null,null,null,"VINCES"]
[]
[null,null,null,null,null,null,null,null,null,null,null,null,null,null,null,null,"PR_MANABI_24_DE_MAYO"]
[null,null,null,null,null,null,null,null,null,null,null,null,null,null,null,null,"ARQ. SIXTO DURAN BALLEN"]
[null,null,null,null,null,null,null,null,null,null,null,null,null,null,null,null,"BELLAVISTA"]
[null,null,null,null,null,null,null,null,null,null,null,null,null,null,null,null,"NOBOA"]
[null,null,null,null,null,null,null,null,null,null,null,null,null,null,null,null,"SUCRE"]
[]
[null,null,null,null,null,null,null,null,null,null,null,null,null,null,null,null,"PR_MANABI_BOLIVAR"]
[null,null,null,null,null,null,null,null,null,null,null,null,null,null,null,null,"CALCETA"]
[null,null,null,null,null,null,null,null,null,null,null,null,null,null,null,null,"MEMBRILLO"]
[null,null,null,null,null,null,null,null,null,null,null,null,null,null,null,null,"QUIROGA"]
[]
[null,null,null,null,null,null,null,null,null,null,null,null,null,null,null,null,"PR_MANABI_CHONE"]
[null,null,null,null,null,null,null,null,null,null,null,null,null,null,null,null,"BOYACA"]
[null,null,null,null,null,null,null,null,null,null,null,null,null,null,null,null,"CANUTO"]
[null,null,null,null,null,null,null,null,null,null,null,null,null,null,null,null,"CHIBUNGA"]
[null,null,null,null,null,null,null,null,null,null,null,null,null,null,null,null,"CHONE"]
[null,null,null,null,null,null,null,null,null,null,null,null,null,null,null,null,"CONVENTO"]
[null,null,null,null,null,null,null,null,null,null,null,null,null,null,null,null,"ELOY ALFARO"]
[null,null,null,null,null,null,null,null,null,null,null,null,null,null,null,null,"RICAURTE"]
[null,null,null,null,null,null,null,null,null,null,null,null,null,null,null,null,"SAN ANTONIO"]
[]
[null,null,null,null,null,null,null,null,null,null,null,null,null,null,null,null,"PR_MANABI_EL_CARMEN"]
[null,null,null,null,null,null,null,null,null,null,null,null,null,null,null,null,"EL CARMEN"]
[null,null,null,null,null,null,null,null,null,null,null,null,null,null,null,null,"SAN PEDRO DE SUMA"]
[null,null,null,null,null,null,null,null,null,null,null,null,null,null,null,null,"WILFRIDO LOOR MOREIRA"]
[]
[null,null,null,null,null,null,null,null,null,null,null,null,null,null,null,null,"PR_MANABI_FLAVIO_ALFARO"]
[null,null,null,null,null,null,null,null,null,null,null,null,null,null,null,null,"FLAVIO ALFARO"]
[null,null,null,null,null,null,null,null,null,null,null,null,null,null,null,null,"SAN FRANCISCO DE NOVILLO"]
[null,null,null,null,null,null,null,null,null,null,null,null,null,null,null,null,"ZAPALLO"]
[]
[null,null,null,null,null,null,null,null,null,null,null,null,null,null,null,null,"PR_MANABI_JAMA"]
[null,null,null,null,null,null,null,null,null,null,null,null,null,null,null,null,"JAMA"]
[]
[null,null,null,null,null,null,null,null,null,null,null,null,null,null,null,null,"PR_MANABI_JARAMIJO"]
[null,null,null,null,null,null,null,null,null,null,null,null,null,null,null,null,"JARAMIJO"]
[]
[null,null,null,null,null,null,null,null,null,null,null,null,null,null,null,null,"PR_MANABI_JIPIJAPA"]
[null,null,null,null,null,null,null,null,null,null,null,null,null,null,null,null,"AMERICA"]
[null,null,null,null,null,null,null,null,null,null,null,null,null,null,null,null,"EL ANEGADO"]
[null,null,null,null,null,null,null,null,null,null,null,null,null,null,null,null,"JIPIJAPA"]
[null,null,null,null,null,null,null,null,null,null,null,null,null,null,null,null,"JULCUY"]
[null,null,null,null,null,null,null,null,null,null,null,null,null,null,null,null,"LA UNION"]
[null,null,null,null,null,null,null,null,null,null,null,null,null,null,null,null,"MEMBRILLAL"]
[null,null,null,null,null,null,null,null,null,null,null,null,null,null,null,null,"PEDRO PABLO GOMEZ"]
[null,null,null,null,null,null,null,null,null,null,null,null,null,null,null,null,"PUERTO DE CAYO"]
[]
[null,null,null,null,null,null,null,null,null,null,null,null,null,null,null,null,"PR_MANABI_JUNIN"]
[null,null,null,null,null,null,null,null,null,null,null,null,null,null,null,null,"JUNIN"]
[]
[null,null,null,null,null,null,null,null,null,null,null,null,null,null,null,null,"PR_MANABI_MANTA"]
[null,null,null,null,null,null,null,null,null,null,null,null,null,null,null,null,"MANTA"]
[null,null,null,null,null,null,null,null,null,null,null,null,null,null,null,null,"SAN LORENZO"]
[null,null,null,null,null,null,null,null,null,null,null,null,null,null,null,null,"SANTA MARIANITA"]
[]
[null,null,null,null,null,null,null,null,null,null,null,null,null,null,null,null,"PR_MANABI_MONTECRISTI"]
[null,null,null,null,null,null,null,null,null,null,null,null,null,null,null,null,"LA PILA"]
[null,null,null,null,null,null,null,null,null,null,null,null,null,null,null,null,"MONTECRISTI"]
[]
[null,null,null,null,null,null,null,null,null,null,null,null,null,null,null,null,"PR_MANABI_OLMEDO"]
[null,null,null,null,null,null,null,null,null,null,null,null,null,null,null,null,"OLMEDO"]
[]
[null,null,null,null,null,null,null,null,null,null,null,null,null,null,null,null,"PR_MANABI_PAJAN"]
[null,null,null,null,null,null,null,null,null,null,null,null,null,null,null,null,"CAMPOZANO"]
[null,null,null,null,null,null,null,null,null,null,null,null,null,null,null,null,"CASCOL"]
[null,null,null,null,null,null,null,null,null,null,null,null,null,null,null,null,"GUALE"]
[null,null,null,null,null,null,null,null,null,null,null,null,null,null,null,null,"LASCANO"]
[null,null,null,null,null,null,null,null,null,null,null,null,null,null,null,null,"PAJAN"]
[]
[null,null,null,null,null,null,null,null,null,null,null,null,null,null,null,null,"PR_MANABI_PEDERNALES"]
[null,null,null,null,null,null,null,null,null,null,null,null,null,null,null,null,"10 DE AGOSTO"]
[null,null,null,null,null,null,null,null,null,null,null,null,null,null,null,null,"ATAHUALPA"]
[null,null,null,null,null,null,null,null,null,null,null,null,null,null,null,null,"COJIMIES"]
[null,null,null,null,null,null,null,null,null,null,null,null,null,null,null,null,"PEDERNALES"]
[]
[null,null,null,null,null,null,null,null,null,null,null,null,null,null,null,null,"PR_MANABI_PICHINCHA"]
[null,null,null,null,null,null,null,null,null,null,null,null,null,null,null,null,"BARRAGANETE"]
[null,null,null,null,null,null,null,null,null,null,null,null,null,null,null,null,"PICHINCHA"]
[null,null,null,null,null,null,null,null,null,null,null,null,null,null,null,null,"SAN SEBASTIAN"]
[]
[null,null,null,null,null,null,null,null,null,null,null,null,null,null,null,null,"PR_MANABI_PORTOVIEJO"]
[null,null,null,null,null,null,null,null,null,null,null,null,null,null,null,null,"ABDON CALDERON"]
[null,null,null,null,null,null,null,null,null,null,null,null,null,null,null,null,"ALHAJUELA (BAJO GRANDE)"]
[null,null,null,null,null,null,null,null,null,null,null,null,null,null,null,null,"CHIRIJOS"]
[null,null,null,null,null,null,null,null,null,null,null,null,null,null,null,null,"CRUCITA"]
[null,null,null,null,null,null,null,null,null,null,null,null,null,null,null,null,"PORTOVIEJO"]
[null,null,null,null,null,null,null,null,null,null,null,null,null,null,null,null,"PUEBLO NUEVO"]
[null,null,null,null,null,null,null,null,null,null,null,null,null,null,null,null,"RIOCHICO (RIO CHICO)"]
[null,null,null,null,null,null,null,null,null,null,null,null,null,null,null,null,"SAN PLACIDO"]
[]
[null,null,null,null,null,null,null,null,null,null,null,null,null,null,null,null,"PR_MANABI_PUERTO_LOPEZ"]
[null,null,null,null,null,null,null,null,null,null,null,null,null,null,null,null,"MACHALILLA"]
[null,null,null,null,null,null,null,null,null,null,null,null,null,null,null,null,"PUERTO LOPEZ"]
[null,null,null,null,null,null,null,null,null,null,null,null,null,null,null,null,"SALANGO"]
[]
[null,null,null,null,null,null,null,null,null,null,null,null,null,null,null,null,"PR_MANABI_ROCAFUERTE"]
[null,null,null,null,null,null,null,null,null,null,null,null,null,null,null,null,"ROCAFUERTE"]
[]
[null,null,null,null,null,null,null,null,null,null,null,null,null,null,null,null,"PR_MANABI_SAN_VICENTE"]
[null,null,null,null,null,null,null,null,null,null,null,null,null,null,null,null,"CANOA"]
[null,null,null,null,null,null,null,null,null,null,null,null,null,null,null,null,"SAN VICENTE"]
[]
[null,null,null,null,null,null,null,null,null,null,null,null,null,null,null,null,"PR_MANABI_SANTA_ANA"]
[null,null,null,null,null,null,null,null,null,null,null,null,null,null,null,null,"AYACUCHO"]
[null,null,null,null,null,null,null,null,null,null,null,null,null,null,null,null,"HONORATO VASQUEZ"]
[null,null,null,null,null,null,null,null,null,null,null,null,null,null,null,null,"LA UNION"]
[null,null,null,null,null,null,null,null,null,null,null,null,null,null,null,null,"SAN PABLO"]
[null,null,null,null,null,null,null,null,null,null,null,null,null,null,null,null,"SANTA ANA DE VUELTA LARGA"]
[]
[null,null,null,null,null,null,null,null,null,null,null,null,null,null,null,null,"PR_MANABI_SUCRE"]
[null,null,null,null,null,null,null,null,null,null,null,null,null,null,null,null,"BAHIA DE CARAQUEZ"]
[null,null,null,null,null,null,null,null,null,null,null,null,null,null,null,null,"CHARAPOTO"]
[null,null,null,null,null,null,null,null,null,null,null,null,null,null,null,null,"SAN ISIDRO"]
[]
[null,null,null,null,null,null,null,null,null,null,null,null,null,null,null,null,"PR_MANABI_TOSAGUA"]
[null,null,null,null,null,null,null,null,null,null,null,null,null,null,null,null,"ANGEL PEDRO GILER"]
[null,null,null,null,null,null,null,null,null,null,null,null,null,null,null,null,"BACHILLERO"]
[null,null,null,null,null,null,null,null,null,null,null,null,null,null,null,null,"TOSAGUA"]
[]
[null,null,null,null,null,null,null,null,null,null,null,null,null,null,null,null,"PR_MORONA_SANTIAGO_GUALAQUIZA"]
[null,null,null,null,null,null,null,null,null,null,null,null,null,null,null,null,"AMAZONAS (ROSARIO DE CUYES)"]
[null,null,null,null,null,null,null,null,null,null,null,null,null,null,null,null,"BERMEJOS"]
[null,null,null,null,null,null,null,null,null,null,null,null,null,null,null,null,"BOMBOIZA"]
[null,null,null,null,null,null,null,null,null,null,null,null,null,null,null,null,"CHIGUINDA"]
[null,null,null,null,null,null,null,null,null,null,null,null,null,null,null,null,"EL IDEAL"]
[null,null,null,null,null,null,null,null,null,null,null,null,null,null,null,null,"EL ROSARIO"]
[null,null,null,null,null,null,null,null,null,null,null,null,null,null,null,null,"GUALAQUIZA"]
[null,null,null,null,null,null,null,null,null,null,null,null,null,null,null,null,"NUEVA TARQUI"]
[null,null,null,null,null,null,null,null,null,null,null,null,null,null,null,null,"SAN MIGUEL DE CUYES"]
[]
[null,null,null,null,null,null,null,null,null,null,null,null,null,null,null,null,"PR_MORONA_SANTIAGO_HUAMBOYA"]
[null,null,null,null,null,null,null,null,null,null,null,null,null,null,null,null,"CHIGUAZA"]
[null,null,null,null,null,null,null,null,null,null,null,null,null,null,null,null,"HUAMBOYA"]
[]
[null,null,null,null,null,null,null,null,null,null,null,null,null,null,null,null,"PR_MORONA_SANTIAGO_LIMON_INDANZA"]
[null,null,null,null,null,null,null,null,null,null,null,null,null,null,null,null,"GENERAL LEONIDAS PLAZA G."]
[null,null,null,null,null,null,null,null,null,null,null,null,null,null,null,null,"INDANZA"]
[null,null,null,null,null,null,null,null,null,null,null,null,null,null,null,null,"SAN ANTONIO"]
[null,null,null,null,null,null,null,null,null,null,null,null,null,null,null,null,"SAN MIGUEL DE CONCHAY"]
[null,null,null,null,null,null,null,null,null,null,null,null,null,null,null,null,"SANTA SUSANA DE CHIVIAZA"]
[null,null,null,null,null,null,null,null,null,null,null,null,null,null,null,null,"YUNGANZA"]
[]
[null,null,null,null,null,null,null,null,null,null,null,null,null,null,null,null,"PR_MORONA_SANTIAGO_LOGROÑO"]
[null,null,null,null,null,null,null,null,null,null,null,null,null,null,null,null,"LOGROÑO"]
[null,null,null,null,null,null,null,null,null,null,null,null,null,null,null,null,"SHIMPIS"]
[null,null,null,null,null,null,null,null,null,null,null,null,null,null,null,null,"YAUPI"]
[]
[null,null,null,null,null,null,null,null,null,null,null,null,null,null,null,null,"PR_MORONA_SANTIAGO_MORONA"]
[null,null,null,null,null,null,null,null,null,null,null,null,null,null,null,null,"ALSHI"]
[null,null,null,null,null,null,null,null,null,null,null,null,null,null,null,null,"CUCHAENTZA"]
[null,null,null,null,null,null,null,null,null,null,null,null,null,null,null,null,"GENERAL PROAÑO"]
[null,null,null,null,null,null,null,null,null,null,null,null,null,null,null,null,"MACAS"]
[null,null,null,null,null,null,null,null,null,null,null,null,null,null,null,null,"RIO BLANCO"]
[null,null,null,null,null,null,null,null,null,null,null,null,null,null,null,null,"SAN ISIDRO"]
[null,null,null,null,null,null,null,null,null,null,null,null,null,null,null,null,"SEVILLA DON BOSCO"]
[null,null,null,null,null,null,null,null,null,null,null,null,null,null,null,null,"SINAI"]
[null,null,null,null,null,null,null,null,null,null,null,null,null,null,null,null,"ZUÑA (ZUÑAC)"]
[]
[null,null,null,null,null,null,null,null,null,null,null,null,null,null,null,null,"PR_MORONA_SANTIAGO_PABLO_VI"]
[null,null,null,null,null,null,null,null,null,null,null,null,null,null,null,null,"PABLO VI"]
[]
[null,null,null,null,null,null,null,null,null,null,null,null,null,null,null,null,"PR_MORONA_SANTIAGO_PALORA"]
[null,null,null,null,null,null,null,null,null,null,null,null,null,null,null,null,"16 DE AGOSTO"]
[null,null,null,null,null,null,null,null,null,null,null,null,null,null,null,null,"ARAPICOS"]
[null,null,null,null,null,null,null,null,null,null,null,null,null,null,null,null,"CUMANDA"]
[null,null,null,null,null,null,null,null,null,null,null,null,null,null,null,null,"PALORA (METZERA)"]
[null,null,null,null,null,null,null,null,null,null,null,null,null,null,null,null,"SANGAY"]
[]
[null,null,null,null,null,null,null,null,null,null,null,null,null,null,null,null,"PR_MORONA_SANTIAGO_SAN_JUAN_BOSCO"]
[null,null,null,null,null,null,null,null,null,null,null,null,null,null,null,null,"PAN DE AZUCAR"]
[null,null,null,null,null,null,null,null,null,null,null,null,null,null,null,null,"SAN CARLOS DE LIMON"]
[null,null,null,null,null,null,null,null,null,null,null,null,null,null,null,null,"SAN JACINTO DE WAKAMBEIS"]
[null,null,null,null,null,null,null,null,null,null,null,null,null,null,null,null,"SAN JUAN BOSCO"]
[null,null,null,null,null,null,null,null,null,null,null,null,null,null,null,null,"SANTIAGO DE PANANZA"]
[]
[null,null,null,null,null,null,null,null,null,null,null,null,null,null,null,null,"PR_MORONA_SANTIAGO_SANTIAGO"]
[null,null,null,null,null,null,null,null,null,null,null,null,null,null,null,null,"CHUPIANZA"]
[null,null,null,null,null,null,null,null,null,null,null,null,null,null,null,null,"COPAL"]
[null,null,null,null,null,null,null,null,null,null,null,null,null,null,null,null,"PATUCA"]
[null,null,null,null,null,null,null,null,null,null,null,null,null,null,null,null,"SAN FRANCISCO DE CHINIMB"]
[null,null,null,null,null,null,null,null,null,null,null,null,null,null,null,null,"SAN LUIS DE EL ACHO"]
[null,null,null,null,null,null,null,null,null,null,null,null,null,null,null,null,"SANTIAGO"]
[null,null,null,null,null,null,null,null,null,null,null,null,null,null,null,null,"SANTIAGO DE MENDEZ"]
[]
[null,null,null,null,null,null,null,null,null,null,null,null,null,null,null,null,"PR_MORONA_SANTIAGO_SUCUA"]
[null,null,null,null,null,null,null,null,null,null,null,null,null,null,null,null,"ASUNCION"]
[null,null,null,null,null,null,null,null,null,null,null,null,null,null,null,null,"HUAMBI"]
[null,null,null,null,null,null,null,null,null,null,null,null,null,null,null,null,"SANTA MARIANITA DE JESUS"]
[null,null,null,null,null,null,null,null,null,null,null,null,null,null,null,null,"SUCUA"]
[]
[null,null,null,null,null,null,null,null,null,null,null,null,null,null,null,null,"PR_MORONA_SANTIAGO_TAISHA"]
[null,null,null,null,null,null,null,null,null,null,null,null,null,null,null,null,"HUASAGA"]
[null,null,null,null,null,null,null,null,null,null,null,null,null,null,null,null,"MACUMA"]
[null,null,null,null,null,null,null,null,null,null,null,null,null,null,null,null,"PUMPUENTSA"]
[null,null,null,null,null,null,null,null,null,null,null,null,null,null,null,null,"TAISHA"]
[null,null,null,null,null,null,null,null,null,null,null,null,null,null,null,null,"TUTINENTZA"]
[]
[null,null,null,null,null,null,null,null,null,null,null,null,null,null,null,null,"PR_MORONA_SANTIAGO_TIWINTZA"]
[null,null,null,null,null,null,null,null,null,null,null,null,null,null,null,null,"SAN JOSE DE MORONA"]
[null,null,null,null,null,null,null,null,null,null,null,null,null,null,null,null,"TIWINTZA"]
[]
[null,null,null,null,null,null,null,null,null,null,null,null,null,null,null,null,"PR_NAPO_ARCHIDONA"]
[null,null,null,null,null,null,null,null,null,null,null,null,null,null,null,null,"ARCHIDONA"]
[null,null,null,null,null,null,null,null,null,null,null,null,null,null,null,null,"COTUNDO"]
[null,null,null,null,null,null,null,null,null,null,null,null,null,null,null,null,"SAN PABLO DE USHPAYACU"]
[]
[null,null,null,null,null,null,null,null,null,null,null,null,null,null,null,null,"PR_NAPO_CARLOS_JULIO_AROSEMENA"]
[null,null,null,null,null,null,null,null,null,null,null,null,null,null,null,null,"CARLOS JULIO AROSEMENA TOLA"]
[]
[null,null,null,null,null,null,null,null,null,null,null,null,null,null,null,null,"PR_NAPO_EL_CHACO"]
[null,null,null,null,null,null,null,null,null,null,null,null,null,null,null,null,"EL CHACO"]
[null,null,null,null,null,null,null,null,null,null,null,null,null,null,null,null,"GONZALO DIAZ DE PINEDA"]
[null,null,null,null,null,null,null,null,null,null,null,null,null,null,null,null,"LINARES"]
[null,null,null,null,null,null,null,null,null,null,null,null,null,null,null,null,"OYACACHI"]
[null,null,null,null,null,null,null,null,null,null,null,null,null,null,null,null,"SANTA ROSA"]
[null,null,null,null,null,null,null,null,null,null,null,null,null,null,null,null,"SARDINAS"]
[]
[null,null,null,null,null,null,null,null,null,null,null,null,null,null,null,null,"PR_NAPO_QUIJOS"]
[null,null,null,null,null,null,null,null,null,null,null,null,null,null,null,null,"BAEZA"]
[null,null,null,null,null,null,null,null,null,null,null,null,null,null,null,null,"COSANGA"]
[null,null,null,null,null,null,null,null,null,null,null,null,null,null,null,null,"CUYUJA"]
[null,null,null,null,null,null,null,null,null,null,null,null,null,null,null,null,"PAPALLACTA"]
[null,null,null,null,null,null,null,null,null,null,null,null,null,null,null,null,"SAN FRANCISCO DE BORJA"]
[null,null,null,null,null,null,null,null,null,null,null,null,null,null,null,null,"SUMACO"]
[]
[null,null,null,null,null,null,null,null,null,null,null,null,null,null,null,null,"PR_NAPO_TENA"]
[null,null,null,null,null,null,null,null,null,null,null,null,null,null,null,null,"AHUANO"]
[null,null,null,null,null,null,null,null,null,null,null,null,null,null,null,null,"CHONTAPUNTA"]
[null,null,null,null,null,null,null,null,null,null,null,null,null,null,null,null,"PANO"]
[null,null,null,null,null,null,null,null,null,null,null,null,null,null,null,null,"PUERTO MISAHUALLI"]
[null,null,null,null,null,null,null,null,null,null,null,null,null,null,null,null,"PUERTO NAPO"]
[null,null,null,null,null,null,null,null,null,null,null,null,null,null,null,null,"TALAG"]
[null,null,null,null,null,null,null,null,null,null,null,null,null,null,null,null,"TENA"]
[]
[null,null,null,null,null,null,null,null,null,null,null,null,null,null,null,null,"PR_ORELLANA_AGUARICO"]
[null,null,null,null,null,null,null,null,null,null,null,null,null,null,null,null,"CAPITAN AUGUSTO RIBADENEYRA"]
[null,null,null,null,null,null,null,null,null,null,null,null,null,null,null,null,"CONONACO"]
[null,null,null,null,null,null,null,null,null,null,null,null,null,null,null,null,"NUEVO ROCAFUERTE"]
[null,null,null,null,null,null,null,null,null,null,null,null,null,null,null,null,"SANTA MARIA DE HUIRIRIMA"]
[null,null,null,null,null,null,null,null,null,null,null,null,null,null,null,null,"TIPUTINI"]
[null,null,null,null,null,null,null,null,null,null,null,null,null,null,null,null,"YASUNI"]
[]
[null,null,null,null,null,null,null,null,null,null,null,null,null,null,null,null,"PR_ORELLANA_LA_JOYA_DE_LOS_SACHAS"]
[null,null,null,null,null,null,null,null,null,null,null,null,null,null,null,null,"ENOKANQUI"]
[null,null,null,null,null,null,null,null,null,null,null,null,null,null,null,null,"LA JOYA DE LOS SACHAS"]
[null,null,null,null,null,null,null,null,null,null,null,null,null,null,null,null,"LAGO SAN PEDRO"]
[null,null,null,null,null,null,null,null,null,null,null,null,null,null,null,null,"POMPEYA"]
[null,null,null,null,null,null,null,null,null,null,null,null,null,null,null,null,"RUMIPAMBA"]
[null,null,null,null,null,null,null,null,null,null,null,null,null,null,null,null,"SAN CARLOS"]
[null,null,null,null,null,null,null,null,null,null,null,null,null,null,null,null,"SAN SEBASTIAN DEL COCA"]
[null,null,null,null,null,null,null,null,null,null,null,null,null,null,null,null,"TRES DE NOVIEMBRE"]
[null,null,null,null,null,null,null,null,null,null,null,null,null,null,null,null,"UNION MILAGREÑA"]
[]
[null,null,null,null,null,null,null,null,null,null,null,null,null,null,null,null,"PR_ORELLANA_LORETO"]
[null,null,null,null,null,null,null,null,null,null,null,null,null,null,null,null,"AVILA"]
[null,null,null,null,null,null,null,null,null,null,null,null,null,null,null,null,"LORETO"]
[null,null,null,null,null,null,null,null,null,null,null,null,null,null,null,null,"PUERTO MURIALDO"]
[null,null,null,null,null,null,null,null,null,null,null,null,null,null,null,null,"SAN JOSE DE DAHUANO"]
[null,null,null,null,null,null,null,null,null,null,null,null,null,null,null,null,"SAN JOSE DE PAYAMINO"]
[null,null,null,null,null,null,null,null,null,null,null,null,null,null,null,null,"SAN VICENTE DE HUATICOCHA"]
[]
[null,null,null,null,null,null,null,null,null,null,null,null,null,null,null,null,"PR_ORELLANA_ORELLANA"]
[null,null,null,null,null,null,null,null,null,null,null,null,null,null,null,null,"ALEJANDRO LABAKA"]
[null,null,null,null,null,null,null,null,null,null,null,null,null,null,null,null,"DAYUMA"]
[null,null,null,null,null,null,null,null,null,null,null,null,null,null,null,null,"EL DORADO"]
[null,null,null,null,null,null,null,null,null,null,null,null,null,null,null,null,"EL EDEN"]
[null,null,null,null,null,null,null,null,null,null,null,null,null,null,null,null,"GARCIA MORENO"]
[null,null,null,null,null,null,null,null,null,null,null,null,null,null,null,null,"INES ARANGO"]
[null,null,null,null,null,null,null,null,null,null,null,null,null,null,null,null,"LA BELLEZA"]
[null,null,null,null,null,null,null,null,null,null,null,null,null,null,null,null,"NUEVO PARAISO"]
[null,null,null,null,null,null,null,null,null,null,null,null,null,null,null,null,"PUERTO FRANCISCO DE ORELLANA"]
[null,null,null,null,null,null,null,null,null,null,null,null,null,null,null,null,"SAN JOSE DE GUAYUSA"]
[null,null,null,null,null,null,null,null,null,null,null,null,null,null,null,null,"SAN LUIS DE ARMENIA"]
[null,null,null,null,null,null,null,null,null,null,null,null,null,null,null,null,"TARACOA"]
[]
[null,null,null,null,null,null,null,null,null,null,null,null,null,null,null,null,"PR_PASTAZA_ARAJUNO"]
[null,null,null,null,null,null,null,null,null,null,null,null,null,null,null,null,"ARAJUNO"]
[null,null,null,null,null,null,null,null,null,null,null,null,null,null,null,null,"CURARAY"]
[]
[null,null,null,null,null,null,null,null,null,null,null,null,null,null,null,null,"PR_PASTAZA_MERA"]
[null,null,null,null,null,null,null,null,null,null,null,null,null,null,null,null,"MADRE TIERRA"]
[null,null,null,null,null,null,null,null,null,null,null,null,null,null,null,null,"MERA"]
[null,null,null,null,null,null,null,null,null,null,null,null,null,null,null,null,"SHELL"]
[]
[null,null,null,null,null,null,null,null,null,null,null,null,null,null,null,null,"PR_PASTAZA_PASTAZA"]
[null,null,null,null,null,null,null,null,null,null,null,null,null,null,null,null,"CANELOS"]
[null,null,null,null,null,null,null,null,null,null,null,null,null,null,null,null,"DIEZ DE AGOSTO"]
[null,null,null,null,null,null,null,null,null,null,null,null,null,null,null,null,"EL TRIUNFO"]
[null,null,null,null,null,null,null,null,null,null,null,null,null,null,null,null,"FATIMA"]
[null,null,null,null,null,null,null,null,null,null,null,null,null,null,null,null,"MONTALVO (ANDOAS)"]
[null,null,null,null,null,null,null,null,null,null,null,null,null,null,null,null,"POMONA"]
[null,null,null,null,null,null,null,null,null,null,null,null,null,null,null,null,"PUYO"]
[null,null,null,null,null,null,null,null,null,null,null,null,null,null,null,null,"RIO CORRIENTES"]
[null,null,null,null,null,null,null,null,null,null,null,null,null,null,null,null,"RIO TIGRE"]
[null,null,null,null,null,null,null,null,null,null,null,null,null,null,null,null,"SARAYACU"]
[null,null,null,null,null,null,null,null,null,null,null,null,null,null,null,null,"SIMON BOLIVAR"]
[null,null,null,null,null,null,null,null,null,null,null,null,null,null,null,null,"TARQUI"]
[null,null,null,null,null,null,null,null,null,null,null,null,null,null,null,null,"TENIENTE HUGO ORTIZ"]
[null,null,null,null,null,null,null,null,null,null,null,null,null,null,null,null,"VERACRUZ (INDILLAMA)"]
[]
[null,null,null,null,null,null,null,null,null,null,null,null,null,null,null,null,"PR_PASTAZA_SANTA_CLARA"]
[null,null,null,null,null,null,null,null,null,null,null,null,null,null,null,null,"SAN JOSE"]
[null,null,null,null,null,null,null,null,null,null,null,null,null,null,null,null,"SANTA CLARA"]
[]
[null,null,null,null,null,null,null,null,null,null,null,null,null,null,null,null,"PR_PICHINCHA_CAYAMBE"]
[null,null,null,null,null,null,null,null,null,null,null,null,null,null,null,null,"ASCAZUBI"]
[null,null,null,null,null,null,null,null,null,null,null,null,null,null,null,null,"CANGAHUA"]
[null,null,null,null,null,null,null,null,null,null,null,null,null,null,null,null,"CAYAMBE"]
[null,null,null,null,null,null,null,null,null,null,null,null,null,null,null,null,"OLMEDO (PESILLO)"]
[null,null,null,null,null,null,null,null,null,null,null,null,null,null,null,null,"OTON"]
[null,null,null,null,null,null,null,null,null,null,null,null,null,null,null,null,"SANTA ROSA DE CUZUBAMBA"]
[]
[null,null,null,null,null,null,null,null,null,null,null,null,null,null,null,null,"PR_PICHINCHA_MEJIA"]
[null,null,null,null,null,null,null,null,null,null,null,null,null,null,null,null,"ALOAG"]
[null,null,null,null,null,null,null,null,null,null,null,null,null,null,null,null,"ALOASI"]
[null,null,null,null,null,null,null,null,null,null,null,null,null,null,null,null,"CUTUGLAHUA"]
[null,null,null,null,null,null,null,null,null,null,null,null,null,null,null,null,"EL CHAUPI"]
[null,null,null,null,null,null,null,null,null,null,null,null,null,null,null,null,"MACHACHI"]
[null,null,null,null,null,null,null,null,null,null,null,null,null,null,null,null,"MANUEL CORNEJO ASTORGA"]
[null,null,null,null,null,null,null,null,null,null,null,null,null,null,null,null,"TAMBILLO"]
[null,null,null,null,null,null,null,null,null,null,null,null,null,null,null,null,"UYUMBICHO"]
[]
[null,null,null,null,null,null,null,null,null,null,null,null,null,null,null,null,"PR_PICHINCHA_PEDRO_MONCAYO"]
[null,null,null,null,null,null,null,null,null,null,null,null,null,null,null,null,"LA ESPERANZA"]
[null,null,null,null,null,null,null,null,null,null,null,null,null,null,null,null,"MALCHINGUI"]
[null,null,null,null,null,null,null,null,null,null,null,null,null,null,null,null,"TABACUNDO"]
[null,null,null,null,null,null,null,null,null,null,null,null,null,null,null,null,"TOCACHI"]
[null,null,null,null,null,null,null,null,null,null,null,null,null,null,null,null,"TUPIGACHI"]
[]
[null,null,null,null,null,null,null,null,null,null,null,null,null,null,null,null,"PR_PICHINCHA_PEDRO_VICENTE_MALDONADO"]
[null,null,null,null,null,null,null,null,null,null,null,null,null,null,null,null,"PEDRO VICENTE MALDONADO"]
[]
[null,null,null,null,null,null,null,null,null,null,null,null,null,null,null,null,"PR_PICHINCHA_PUERTO_QUITO"]
[null,null,null,null,null,null,null,null,null,null,null,null,null,null,null,null,"PUERTO QUITO"]
[]
[null,null,null,null,null,null,null,null,null,null,null,null,null,null,null,null,"PR_PICHINCHA_QUITO"]
[null,null,null,null,null,null,null,null,null,null,null,null,null,null,null,null,"ALANGASI"]
[null,null,null,null,null,null,null,null,null,null,null,null,null,null,null,null,"AMAGUAÑA"]
[null,null,null,null,null,null,null,null,null,null,null,null,null,null,null,null,"ATAHUALPA (HABASPAMBA)"]
[null,null,null,null,null,null,null,null,null,null,null,null,null,null,null,null,"CALACALI"]
[null,null,null,null,null,null,null,null,null,null,null,null,null,null,null,null,"CALDERON (CARAPUNGO)"]
[null,null,null,null,null,null,null,null,null,null,null,null,null,null,null,null,"CHAVEZPAMBA"]
[null,null,null,null,null,null,null,null,null,null,null,null,null,null,null,null,"CHECA (CHILPA)"]
[null,null,null,null,null,null,null,null,null,null,null,null,null,null,null,null,"CONOCOTO"]
[null,null,null,null,null,null,null,null,null,null,null,null,null,null,null,null,"CUMBAYA"]
[null,null,null,null,null,null,null,null,null,null,null,null,null,null,null,null,"EL QUINCHE"]
[null,null,null,null,null,null,null,null,null,null,null,null,null,null,null,null,"GUALEA"]
[null,null,null,null,null,null,null,null,null,null,null,null,null,null,null,null,"GUANGOPOLO"]
[null,null,null,null,null,null,null,null,null,null,null,null,null,null,null,null,"GUAYLLABAMBA"]
[null,null,null,null,null,null,null,null,null,null,null,null,null,null,null,null,"LA MERCED"]
[null,null,null,null,null,null,null,null,null,null,null,null,null,null,null,null,"LLANO CHICO"]
[null,null,null,null,null,null,null,null,null,null,null,null,null,null,null,null,"LLOA"]
[null,null,null,null,null,null,null,null,null,null,null,null,null,null,null,null,"NANEGAL"]
[null,null,null,null,null,null,null,null,null,null,null,null,null,null,null,null,"NANEGALITO"]
[null,null,null,null,null,null,null,null,null,null,null,null,null,null,null,null,"NAYON"]
[null,null,null,null,null,null,null,null,null,null,null,null,null,null,null,null,"NONO"]
[null,null,null,null,null,null,null,null,null,null,null,null,null,null,null,null,"PACTO"]
[null,null,null,null,null,null,null,null,null,null,null,null,null,null,null,null,"PERUCHO"]
[null,null,null,null,null,null,null,null,null,null,null,null,null,null,null,null,"PIFO"]
[null,null,null,null,null,null,null,null,null,null,null,null,null,null,null,null,"PINTAG"]
[null,null,null,null,null,null,null,null,null,null,null,null,null,null,null,null,"POMASQUI"]
[null,null,null,null,null,null,null,null,null,null,null,null,null,null,null,null,"PUELLARO"]
[null,null,null,null,null,null,null,null,null,null,null,null,null,null,null,null,"PUEMBO"]
[null,null,null,null,null,null,null,null,null,null,null,null,null,null,null,null,"QUITO"]
[null,null,null,null,null,null,null,null,null,null,null,null,null,null,null,null,"SAN ANTONIO"]
[null,null,null,null,null,null,null,null,null,null,null,null,null,null,null,null,"SAN JOSE DE MINAS"]
[null,null,null,null,null,null,null,null,null,null,null,null,null,null,null,null,"TABABELA"]
[null,null,null,null,null,null,null,null,null,null,null,null,null,null,null,null,"TUMBACO"]
[null,null,null,null,null,null,null,null,null,null,null,null,null,null,null,null,"YARUQUI"]
[null,null,null,null,null,null,null,null,null,null,null,null,null,null,null,null,"ZAMBIZA"]
[]
[null,null,null,null,null,null,null,null,null,null,null,null,null,null,null,null,"PR_PICHINCHA_RUMIÑAHUI"]
[null,null,null,null,null,null,null,null,null,null,null,null,null,null,null,null,"COTOGCHOA"]
[null,null,null,null,null,null,null,null,null,null,null,null,null,null,null,null,"RUMIPAMBA"]
[null,null,null,null,null,null,null,null,null,null,null,null,null,null,null,null,"SANGOLQUI"]
[]
[null,null,null,null,null,null,null,null,null,null,null,null,null,null,null,null,"PR_PICHINCHA_SAN_MIGUEL_DE_LOS_BANCOS"]
[null,null,null,null,null,null,null,null,null,null,null,null,null,null,null,null,"MINDO"]
[null,null,null,null,null,null,null,null,null,null,null,null,null,null,null,null,"SAN MIGUEL DE LOS BANCOS"]
[]
[null,null,null,null,null,null,null,null,null,null,null,null,null,null,null,null,"PR_SANTA_ELENA_LIBERTAD"]
[null,null,null,null,null,null,null,null,null,null,null,null,null,null,null,null,"LA LIBERTAD"]
[]
[null,null,null,null,null,null,null,null,null,null,null,null,null,null,null,null,"PR_SANTA_ELENA_SALINAS"]
[null,null,null,null,null,null,null,null,null,null,null,null,null,null,null,null,"ANCONCITO"]
[null,null,null,null,null,null,null,null,null,null,null,null,null,null,null,null,"JOSE LUIS TAMAYO"]
[null,null,null,null,null,null,null,null,null,null,null,null,null,null,null,null,"SALINAS"]
[]
[null,null,null,null,null,null,null,null,null,null,null,null,null,null,null,null,"PR_SANTA_ELENA_SANTA_ELENA"]
[null,null,null,null,null,null,null,null,null,null,null,null,null,null,null,null,"ATAHUALPA"]
[null,null,null,null,null,null,null,null,null,null,null,null,null,null,null,null,"CHANDUY"]
[null,null,null,null,null,null,null,null,null,null,null,null,null,null,null,null,"COLONCHE"]
[null,null,null,null,null,null,null,null,null,null,null,null,null,null,null,null,"MANGLARALTO"]
[null,null,null,null,null,null,null,null,null,null,null,null,null,null,null,null,"SAN JOSE DE ANCON"]
[null,null,null,null,null,null,null,null,null,null,null,null,null,null,null,null,"SANTA ELENA"]
[null,null,null,null,null,null,null,null,null,null,null,null,null,null,null,null,"SIMON BOLIVAR"]
[]
[null,null,null,null,null,null,null,null,null,null,null,null,null,null,null,null,"PR_SANTO_DOMINGO_SANTO_DOMINGO_DE_LOS_TSACHILAS"]
[null,null,null,null,null,null,null,null,null,null,null,null,null,null,null,null,"ALLURIQUIN"]
[null,null,null,null,null,null,null,null,null,null,null,null,null,null,null,null,"EL ESFUERZO"]
[null,null,null,null,null,null,null,null,null,null,null,null,null,null,null,null,"LUZ DE AMERICA"]
[null,null,null,null,null,null,null,null,null,null,null,null,null,null,null,null,"PUERTO LIMON"]
[null,null,null,null,null,null,null,null,null,null,null,null,null,null,null,null,"SAN JACINTO DEL BUA"]
[null,null,null,null,null,null,null,null,null,null,null,null,null,null,null,null,"SANTA MARIA DEL TOACHI"]
[null,null,null,null,null,null,null,null,null,null,null,null,null,null,null,null,"SANTO DOMINGO DE LOS COLORADOS"]
[null,null,null,null,null,null,null,null,null,null,null,null,null,null,null,null,"VALLE HERMOSO"]
[]
[null,null,null,null,null,null,null,null,null,null,null,null,null,null,null,null,"PR_SUCUMBÍOS_CASCALES"]
[null,null,null,null,null,null,null,null,null,null,null,null,null,null,null,null,"EL DORADO DE CASCALES"]
[null,null,null,null,null,null,null,null,null,null,null,null,null,null,null,null,"SANTA ROSA DE SUCUMBIOS"]
[null,null,null,null,null,null,null,null,null,null,null,null,null,null,null,null,"SEVILLA"]
[]
[null,null,null,null,null,null,null,null,null,null,null,null,null,null,null,null,"PR_SUCUMBÍOS_CUYABENO"]
[null,null,null,null,null,null,null,null,null,null,null,null,null,null,null,null,"AGUAS NEGRAS"]
[null,null,null,null,null,null,null,null,null,null,null,null,null,null,null,null,"CUYABENO"]
[null,null,null,null,null,null,null,null,null,null,null,null,null,null,null,null,"TARAPOA"]
[]
[null,null,null,null,null,null,null,null,null,null,null,null,null,null,null,null,"PR_SUCUMBÍOS_GONZALO_PIZARRO"]
[null,null,null,null,null,null,null,null,null,null,null,null,null,null,null,null,"EL REVENTADOR"]
[null,null,null,null,null,null,null,null,null,null,null,null,null,null,null,null,"GONZALO PIZARRO"]
[null,null,null,null,null,null,null,null,null,null,null,null,null,null,null,null,"LUMBAQUI"]
[null,null,null,null,null,null,null,null,null,null,null,null,null,null,null,null,"PUERTO LIBRE"]
[]
[null,null,null,null,null,null,null,null,null,null,null,null,null,null,null,null,"PR_SUCUMBÍOS_LAGO_AGRIO"]
[null,null,null,null,null,null,null,null,null,null,null,null,null,null,null,null,"DURENO"]
[null,null,null,null,null,null,null,null,null,null,null,null,null,null,null,null,"EL ENO"]
[null,null,null,null,null,null,null,null,null,null,null,null,null,null,null,null,"GENERAL FARFAN"]
[null,null,null,null,null,null,null,null,null,null,null,null,null,null,null,null,"JAMBELI"]
[null,null,null,null,null,null,null,null,null,null,null,null,null,null,null,null,"NUEVA LOJA"]
[null,null,null,null,null,null,null,null,null,null,null,null,null,null,null,null,"PACAYACU"]
[null,null,null,null,null,null,null,null,null,null,null,null,null,null,null,null,"STA. CECILIA"]
[]
[null,null,null,null,null,null,null,null,null,null,null,null,null,null,null,null,"PR_SUCUMBÍOS_PUTUMAYO"]
[null,null,null,null,null,null,null,null,null,null,null,null,null,null,null,null,"PALMA ROJA"]
[null,null,null,null,null,null,null,null,null,null,null,null,null,null,null,null,"PUERTO BOLIVAR"]
[null,null,null,null,null,null,null,null,null,null,null,null,null,null,null,null,"PUERTO EL CARMEN DEL PUTUMAYO"]
[null,null,null,null,null,null,null,null,null,null,null,null,null,null,null,null,"PUERTO RODRIGUEZ"]
[null,null,null,null,null,null,null,null,null,null,null,null,null,null,null,null,"SANTA ELENA"]
[]
[null,null,null,null,null,null,null,null,null,null,null,null,null,null,null,null,"PR_SUCUMBÍOS_SHUSHUFINDI"]
[null,null,null,null,null,null,null,null,null,null,null,null,null,null,null,null,"LIMONCOCHA"]
[null,null,null,null,null,null,null,null,null,null,null,null,null,null,null,null,"PAÑACOCHA"]
[null,null,null,null,null,null,null,null,null,null,null,null,null,null,null,null,"SAN PEDRO DE LOS COFANES"]
[null,null,null,null,null,null,null,null,null,null,null,null,null,null,null,null,"SAN ROQUE"]
[null,null,null,null,null,null,null,null,null,null,null,null,null,null,null,null,"SHUSHUFINDI"]
[null,null,null,null,null,null,null,null,null,null,null,null,null,null,null,null,"SIETE DE JULIO"]
[]
[null,null,null,null,null,null,null,null,null,null,null,null,null,null,null,null,"PR_SUCUMBÍOS_SUCUMBIOS"]
[null,null,null,null,null,null,null,null,null,null,null,null,null,null,null,null,"EL PLAYON DE SAN FRANCIS"]
[null,null,null,null,null,null,null,null,null,null,null,null,null,null,null,null,"LA BONITA"]
[null,null,null,null,null,null,null,null,null,null,null,null,null,null,null,null,"LA SOFIA"]
[null,null,null,null,null,null,null,null,null,null,null,null,null,null,null,null,"ROSA FLORIDA"]
[null,null,null,null,null,null,null,null,null,null,null,null,null,null,null,null,"SANTA BARBARA"]
[]
[null,null,null,null,null,null,null,null,null,null,null,null,null,null,null,null,"PR_TUNGURAHUA_AMBATO"]
[null,null,null,null,null,null,null,null,null,null,null,null,null,null,null,null,"AMBATILLO"]
[null,null,null,null,null,null,null,null,null,null,null,null,null,null,null,null,"AMBATO"]
[null,null,null,null,null,null,null,null,null,null,null,null,null,null,null,null,"ATAHUALPA (CHISALATA)"]
[null,null,null,null,null,null,null,null,null,null,null,null,null,null,null,null,"AUGUSTO N. MARTINEZ"]
[null,null,null,null,null,null,null,null,null,null,null,null,null,null,null,null,"CONSTANTINO FERNANDEZ"]
[null,null,null,null,null,null,null,null,null,null,null,null,null,null,null,null,"CUNCHIBAMBA"]
[null,null,null,null,null,null,null,null,null,null,null,null,null,null,null,null,"HUACHI GRANDE"]
[null,null,null,null,null,null,null,null,null,null,null,null,null,null,null,null,"IZAMBA"]
[null,null,null,null,null,null,null,null,null,null,null,null,null,null,null,null,"JUAN BENIGNO VELA"]
[null,null,null,null,null,null,null,null,null,null,null,null,null,null,null,null,"MONTALVO"]
[null,null,null,null,null,null,null,null,null,null,null,null,null,null,null,null,"PASA"]
[null,null,null,null,null,null,null,null,null,null,null,null,null,null,null,null,"PICAIGUA"]
[null,null,null,null,null,null,null,null,null,null,null,null,null,null,null,null,"PILAGUIN (PILAHUIN)"]
[null,null,null,null,null,null,null,null,null,null,null,null,null,null,null,null,"QUISAPINCHA (QUIZAPINCHA)"]
[null,null,null,null,null,null,null,null,null,null,null,null,null,null,null,null,"SAN BARTOLOME DE PINLLOG"]
[null,null,null,null,null,null,null,null,null,null,null,null,null,null,null,null,"SAN FERNANDO"]
[null,null,null,null,null,null,null,null,null,null,null,null,null,null,null,null,"SANTA ROSA"]
[null,null,null,null,null,null,null,null,null,null,null,null,null,null,null,null,"TOTORAS"]
[null,null,null,null,null,null,null,null,null,null,null,null,null,null,null,null,"UNAMUNCHO"]
[]
[null,null,null,null,null,null,null,null,null,null,null,null,null,null,null,null,"PR_TUNGURAHUA_BAÑOS"]
[null,null,null,null,null,null,null,null,null,null,null,null,null,null,null,null,"BAÑOS"]
[null,null,null,null,null,null,null,null,null,null,null,null,null,null,null,null,"LLIGUA"]
[null,null,null,null,null,null,null,null,null,null,null,null,null,null,null,null,"RIO NEGRO"]
[null,null,null,null,null,null,null,null,null,null,null,null,null,null,null,null,"RIO VERDE"]
[null,null,null,null,null,null,null,null,null,null,null,null,null,null,null,null,"ULBA"]
[]
[null,null,null,null,null,null,null,null,null,null,null,null,null,null,null,null,"PR_TUNGURAHUA_CEVALLOS"]
[null,null,null,null,null,null,null,null,null,null,null,null,null,null,null,null,"CEVALLOS"]
[]
[null,null,null,null,null,null,null,null,null,null,null,null,null,null,null,null,"PR_TUNGURAHUA_MOCHA"]
[null,null,null,null,null,null,null,null,null,null,null,null,null,null,null,null,"MOCHA"]
[null,null,null,null,null,null,null,null,null,null,null,null,null,null,null,null,"PINGUILI"]
[]
[null,null,null,null,null,null,null,null,null,null,null,null,null,null,null,null,"PR_TUNGURAHUA_PATATE"]
[null,null,null,null,null,null,null,null,null,null,null,null,null,null,null,null,"EL TRIUNFO"]
[null,null,null,null,null,null,null,null,null,null,null,null,null,null,null,null,"LOS ANDES"]
[null,null,null,null,null,null,null,null,null,null,null,null,null,null,null,null,"PATATE"]
[null,null,null,null,null,null,null,null,null,null,null,null,null,null,null,null,"SUCRE"]
[]
[null,null,null,null,null,null,null,null,null,null,null,null,null,null,null,null,"PR_TUNGURAHUA_QUERO"]
[null,null,null,null,null,null,null,null,null,null,null,null,null,null,null,null,"QUERO"]
[null,null,null,null,null,null,null,null,null,null,null,null,null,null,null,null,"RUMIPAMBA"]
[null,null,null,null,null,null,null,null,null,null,null,null,null,null,null,null,"YANAYACU - MOCHAPATA"]
[]
[null,null,null,null,null,null,null,null,null,null,null,null,null,null,null,null,"PR_TUNGURAHUA_SAN_PEDRO_DE_PELILEO"]
[null,null,null,null,null,null,null,null,null,null,null,null,null,null,null,null,"BENITEZ (PACHANLICA)"]
[null,null,null,null,null,null,null,null,null,null,null,null,null,null,null,null,"BOLIVAR"]
[null,null,null,null,null,null,null,null,null,null,null,null,null,null,null,null,"CHIQUICHA"]
[null,null,null,null,null,null,null,null,null,null,null,null,null,null,null,null,"COTALO"]
[null,null,null,null,null,null,null,null,null,null,null,null,null,null,null,null,"EL ROSARIO (RUMICHACA)"]
[null,null,null,null,null,null,null,null,null,null,null,null,null,null,null,null,"GARCIA MORENO (CHUMAQUI)"]
[null,null,null,null,null,null,null,null,null,null,null,null,null,null,null,null,"GUAMBALO (HUAMBALO)"]
[null,null,null,null,null,null,null,null,null,null,null,null,null,null,null,null,"PELILEO"]
[null,null,null,null,null,null,null,null,null,null,null,null,null,null,null,null,"SALASACA"]
[]
[null,null,null,null,null,null,null,null,null,null,null,null,null,null,null,null,"PR_TUNGURAHUA_SANTIAGO_DE_PILLARO"]
[null,null,null,null,null,null,null,null,null,null,null,null,null,null,null,null,"BAQUERIZO MORENO"]
[null,null,null,null,null,null,null,null,null,null,null,null,null,null,null,null,"EMILIO MARIA TERAN"]
[null,null,null,null,null,null,null,null,null,null,null,null,null,null,null,null,"MARCOS ESPINEL (CHACATA)"]
[null,null,null,null,null,null,null,null,null,null,null,null,null,null,null,null,"PILLARO"]
[null,null,null,null,null,null,null,null,null,null,null,null,null,null,null,null,"PRESIDENTE URBINA"]
[null,null,null,null,null,null,null,null,null,null,null,null,null,null,null,null,"SAN ANDRES"]
[null,null,null,null,null,null,null,null,null,null,null,null,null,null,null,null,"SAN JOSE DE POALO"]
[null,null,null,null,null,null,null,null,null,null,null,null,null,null,null,null,"SAN MIGUELITO"]
[]
[null,null,null,null,null,null,null,null,null,null,null,null,null,null,null,null,"PR_TUNGURAHUA_TISALEO"]
[null,null,null,null,null,null,null,null,null,null,null,null,null,null,null,null,"QUINCHICOTO"]
[null,null,null,null,null,null,null,null,null,null,null,null,null,null,null,null,"TISALEO"]
[]
[null,null,null,null,null,null,null,null,null,null,null,null,null,null,null,null,"PR_ZAMORA_CHINCHIPE_CENTINELA_DEL_CONDOR"]
[null,null,null,null,null,null,null,null,null,null,null,null,null,null,null,null,"ZUMBI"]
[]
[null,null,null,null,null,null,null,null,null,null,null,null,null,null,null,null,"PR_ZAMORA_CHINCHIPE_CHINCHIPE"]
[null,null,null,null,null,null,null,null,null,null,null,null,null,null,null,null,"CHITO"]
[null,null,null,null,null,null,null,null,null,null,null,null,null,null,null,null,"EL CHORRO"]
[null,null,null,null,null,null,null,null,null,null,null,null,null,null,null,null,"LA CHONTA"]
[null,null,null,null,null,null,null,null,null,null,null,null,null,null,null,null,"PUCAPAMBA"]
[null,null,null,null,null,null,null,null,null,null,null,null,null,null,null,null,"SAN ANDRES"]
[null,null,null,null,null,null,null,null,null,null,null,null,null,null,null,null,"ZUMBA"]
[]
[null,null,null,null,null,null,null,null,null,null,null,null,null,null,null,null,"PR_ZAMORA_CHINCHIPE_EL_PANGUI"]
[null,null,null,null,null,null,null,null,null,null,null,null,null,null,null,null,"EL GUISMI"]
[null,null,null,null,null,null,null,null,null,null,null,null,null,null,null,null,"EL PANGUI"]
[null,null,null,null,null,null,null,null,null,null,null,null,null,null,null,null,"PACHICUTZA"]
[null,null,null,null,null,null,null,null,null,null,null,null,null,null,null,null,"TUNDAYME"]
[]
[null,null,null,null,null,null,null,null,null,null,null,null,null,null,null,null,"PR_ZAMORA_CHINCHIPE_NANGARITZA"]
[null,null,null,null,null,null,null,null,null,null,null,null,null,null,null,null,"GUAYZIMI"]
[null,null,null,null,null,null,null,null,null,null,null,null,null,null,null,null,"NUEVO PARAISO"]
[null,null,null,null,null,null,null,null,null,null,null,null,null,null,null,null,"ZURMI"]
[]
[null,null,null,null,null,null,null,null,null,null,null,null,null,null,null,null,"PR_ZAMORA_CHINCHIPE_PALANDA"]
[null,null,null,null,null,null,null,null,null,null,null,null,null,null,null,null,"EL PORVENIR DEL CARMEN"]
[null,null,null,null,null,null,null,null,null,null,null,null,null,null,null,null,"LA CANELA"]
[null,null,null,null,null,null,null,null,null,null,null,null,null,null,null,null,"PALANDA"]
[null,null,null,null,null,null,null,null,null,null,null,null,null,null,null,null,"SAN FRANCISCO DE VERGEL"]
[null,null,null,null,null,null,null,null,null,null,null,null,null,null,null,null,"VALLADOLID"]
[]
[null,null,null,null,null,null,null,null,null,null,null,null,null,null,null,null,"PR_ZAMORA_CHINCHIPE_PAQUISHA"]
[null,null,null,null,null,null,null,null,null,null,null,null,null,null,null,null,"BELLAVISTA"]
[null,null,null,null,null,null,null,null,null,null,null,null,null,null,null,null,"NUEVO QUITO"]
[null,null,null,null,null,null,null,null,null,null,null,null,null,null,null,null,"PAQUISHA"]
[]
[null,null,null,null,null,null,null,null,null,null,null,null,null,null,null,null,"PR_ZAMORA_CHINCHIPE_YACUAMBI"]
[null,null,null,null,null,null,null,null,null,null,null,null,null,null,null,null,"28 DE MAYO"]
[null,null,null,null,null,null,null,null,null,null,null,null,null,null,null,null,"LA PAZ"]
[null,null,null,null,null,null,null,null,null,null,null,null,null,null,null,null,"TUTUPALI"]
[]
[null,null,null,null,null,null,null,null,null,null,null,null,null,null,null,null,"PR_ZAMORA_CHINCHIPE_YANTZAZA"]
[null,null,null,null,null,null,null,null,null,null,null,null,null,null,null,null,"CHICAÑA"]
[null,null,null,null,null,null,null,null,null,null,null,null,null,null,null,null,"LOS ENCUENTROS"]
[null,null,null,null,null,null,null,null,null,null,null,null,null,null,null,null,"YANZATZA"]
[]
[null,null,null,null,null,null,null,null,null,null,null,null,null,null,null,null,"PR_ZAMORA_CHINCHIPE_ZAMORA"]
[null,null,null,null,null,null,null,null,null,null,null,null,null,null,null,null,"CUMBARATZA"]
[null,null,null,null,null,null,null,null,null,null,null,null,null,null,null,null,"GUADALUPE"]
[null,null,null,null,null,null,null,null,null,null,null,null,null,null,null,null,"IMBANA"]
[null,null,null,null,null,null,null,null,null,null,null,null,null,null,null,null,"SABANILLA"]
[null,null,null,null,null,null,null,null,null,null,null,null,null,null,null,null,"SAN CARLOS DE LAS MINAS"]
[null,null,null,null,null,null,null,null,null,null,null,null,null,null,null,null,"TIMBARA"]
[null,null,null,null,null,null,null,null,null,null,null,null,null,null,null,null,"ZAMORA"]
[]
[null,null,null,null,null,null,null,null,null,null,null,null,null,null,null,null,"PR_ZONAS_NO_DELIMITADAS_EL_PIEDRERO"]
[null,null,null,null,null,null,null,null,null,null,null,null,null,null,null,null,"EL PIEDRERO"]
[]
[null,null,null,null,null,null,null,null,null,null,null,null,null,null,null,null,"PR_ZONAS_NO_DELIMITADAS_LAS_GOLONDRINAS"]
[null,null,null,null,null,null,null,null,null,null,null,null,null,null,null,null,"LAS GOLONDRINAS"]
[]
[null,null,null,null,null,null,null,null,null,null,null,null,null,null,null,null,"PR_ZONAS_NO_DELIMITADAS_MANGA_DEL_CURA"]
[null,null,null,null,null,null,null,null,null,null,null,null,null,null,null,null,"MANGA DEL CURA"]

{"sheet":"CONSOLIDADO","index":2,"n_rows":2003,"n_cols":72,"rows_kept":2003,"cut":false,"hidden":false,"merged":[[1,48,1,55],[1,56,1,59],[1,60,1,71],[1,1,1,3],[1,4,1,6],[1,13,1,19],[1,20,1,37],[1,9,1,12],[1,38,1,47]]}
[]
[null,"DATOS TERRITORIALES",null,null,"DATOS OPERADOR",null,null,null,null,"VULNERABIL.",null,null,null,"OTRO TIPO DE VULNERABILIDAD",null,null,null,null,null,null,"DATOS DEL ASPIRANTE",null,null,null,null,null,null,null,null,null,null,null,null,null,null,null,null,null,"DATOS DEL HERMANO",null,null,null,null,null,null,null,null,null,"DATOS DEL REPRESENTANTE",null,null,null,null,null,null,null,"DATOS DEL TRASLADO",null,null,null,"CASOS EXCEPCIONALES"]
["Nro.","ZONA","DISTRITO","SEDE_INSC","Apel_Ope","Nomb_Ope","Cedu_Ope","TDInscripcion","Cuantos Aspirantes?","V1","V2","V3","V4","OTV1","OTV2","OTV3","OTV4","OTV5","OTV6","OTV7","Apel_Asp","Nomb_Asp","Cedu_Asp","Genero","DiaNac_Asp","MesNac_Asp","AñoNac_Asp","EMAIL_ASPIRANTE","TELF_CONVE_ASPIRANTE","TELF_CELUL_ASPIRANTE","Prov_Asp","Cant_Asp","Parr_Asp","Direccion_Asp","Refe_Asp","Sitios_Interes_Asp","Nro_serv_basico","Localidad","H1","H2","IE_Her","Prov_IE_Her","Cant_IE_Her","Parr_IE_Her","Direccion_IE_Her","Apel_Hermano","Nomb_Hermano","Cedula_Hermano","Apel_Rep","Nomb_Rep","Cedu_Rep","Parentesco","Gene_Rep","NroCel_Rep","NroCon_Rep","Email_Rep","Año_Inscripcion","IE_Actual","Sost_IE_Actual","Dire_IE_Actual","Migr1","Rein1","Rein2","Estado Civil","Trabajo","Af. IESS","Cargas Familiares","Nro. CF","EEI1","Vuln1","Vuln2","Vuln3"]
[1]
[2]
[3]
[4]
[5]
[6]
[7]
[8]
[9]
[10]
[11]
[12]
[13]
[14]
[15]
[16]
[17]
[18]
[19]
[20]
[21]
[22]
[23]
[24]
[25]
[26]
[27]
[28]
[29]
[30]
[31]
[32]
[33]
[34]
[35]
[36]
[37]
[38]
[39]
[40]
[41]
[42]
[43]
[44]
[45]
[46]
[47]
[48]
[49]
[50]
[51]
[52]
[53]
[54]
[55]
[56]
[57]
[58]
[59]
[60]
[61]
[62]
[63]
[64]
[65]
[66]
[67]
[68]
[69]
[70]
[71]
[72]
[73]
[74]
[75]
[76]
[77]
[78]
[79]
[80]
[81]
[82]
[83]
[84]
[85]
[86]
[87]
[88]
[89]
[90]
[91]
[92]
[93]
[94]
[95]
[96]
[97]
[98]
[99]
[100]
[101]
[102]
[103]
[104]
[105]
[106]
[107]
[108]
[109]
[110]
[111]
[112]
[113]
[114]
[115]
[116]
[117]
[118]
[119]
[120]
[121]
[122]
[123]
[124]
[125]
[126]
[127]
[128]
[129]
[130]
[131]
[132]
[133]
[134]
[135]
[136]
[137]
[138]
[139]
[140]
[141]
[142]
[143]
[144]
[145]
[146]
[147]
[148]
[149]
[150]
[151]
[152]
[153]
[154]
[155]
[156]
[157]
[158]
[159]
[160]
[161]
[162]
[163]
[164]
[165]
[166]
[167]
[168]
[169]
[170]
[171]
[172]
[173]
[174]
[175]
[176]
[177]
[178]
[179]
[180]
[181]
[182]
[183]
[184]
[185]
[186]
[187]
[188]
[189]
[190]
[191]
[192]
[193]
[194]
[195]
[196]
[197]
[198]
[199]
[200]
[201]
[202]
[203]
[204]
[205]
[206]
[207]
[208]
[209]
[210]
[211]
[212]
[213]
[214]
[215]
[216]
[217]
[218]
[219]
[220]
[221]
[222]
[223]
[224]
[225]
[226]
[227]
[228]
[229]
[230]
[231]
[232]
[233]
[234]
[235]
[236]
[237]
[238]
[239]
[240]
[241]
[242]
[243]
[244]
[245]
[246]
[247]
[248]
[249]
[250]
[251]
[252]
[253]
[254]
[255]
[256]
[257]
[258]
[259]
[260]
[261]
[262]
[263]
[264]
[265]
[266]
[267]
[268]
[269]
[270]
[271]
[272]
[273]
[274]
[275]
[276]
[277]
[278]
[279]
[280]
[281]
[282]
[283]
[284]
[285]
[286]
[287]
[288]
[289]
[290]
[291]
[292]
[293]
[294]
[295]
[296]
[297]
[298]
[299]
[300]
[301]
[302]
[303]
[304]
[305]
[306]
[307]
[308]
[309]
[310]
[311]
[312]
[313]
[314]
[315]
[316]
[317]
[318]
[319]
[320]
[321]
[322]
[323]
[324]
[325]
[326]
[327]
[328]
[329]
[330]
[331]
[332]
[333]
[334]
[335]
[336]
[337]
[338]
[339]
[340]
[341]
[342]
[343]
[344]
[345]
[346]
[347]
[348]
[349]
[350]
[351]
[352]
[353]
[354]
[355]
[356]
[357]
[358]
[359]
[360]
[361]
[362]
[363]
[364]
[365]
[366]
[367]
[368]
[369]
[370]
[371]
[372]
[373]
[374]
[375]
[376]
[377]
[378]
[379]
[380]
[381]
[382]
[383]
[384]
[385]
[386]
[387]
[388]
[389]
[390]
[391]
[392]
[393]
[394]
[395]
[396]
[397]
[398]
[399]
[400]
[401]
[402]
[403]
[404]
[405]
[406]
[407]
[408]
[409]
[410]
[411]
[412]
[413]
[414]
[415]
[416]
[417]
[418]
[419]
[420]
[421]
[422]
[423]
[424]
[425]
[426]
[427]
[428]
[429]
[430]
[431]
[432]
[433]
[434]
[435]
[436]
[437]
[438]
[439]
[440]
[441]
[442]
[443]
[444]
[445]
[446]
[447]
[448]
[449]
[450]
[451]
[452]
[453]
[454]
[455]
[456]
[457]
[458]
[459]
[460]
[461]
[462]
[463]
[464]
[465]
[466]
[467]
[468]
[469]
[470]
[471]
[472]
[473]
[474]
[475]
[476]
[477]
[478]
[479]
[480]
[481]
[482]
[483]
[484]
[485]
[486]
[487]
[488]
[489]
[490]
[491]
[492]
[493]
[494]
[495]
[496]
[497]
[498]
[499]
[500]
[501]
[502]
[503]
[504]
[505]
[506]
[507]
[508]
[509]
[510]
[511]
[512]
[513]
[514]
[515]
[516]
[517]
[518]
[519]
[520]
[521]
[522]
[523]
[524]
[525]
[526]
[527]
[528]
[529]
[530]
[531]
[532]
[533]
[534]
[535]
[536]
[537]
[538]
[539]
[540]
[541]
[542]
[543]
[544]
[545]
[546]
[547]
[548]
[549]
[550]
[551]
[552]
[553]
[554]
[555]
[556]
[557]
[558]
[559]
[560]
[561]
[562]
[563]
[564]
[565]
[566]
[567]
[568]
[569]
[570]
[571]
[572]
[573]
[574]
[575]
[576]
[577]
[578]
[579]
[580]
[581]
[582]
[583]
[584]
[585]
[586]
[587]
[588]
[589]
[590]
[591]
[592]
[593]
[594]
[595]
[596]
[597]
[598]
[599]
[600]
[601]
[602]
[603]
[604]
[605]
[606]
[607]
[608]
[609]
[610]
[611]
[612]
[613]
[614]
[615]
[616]
[617]
[618]
[619]
[620]
[621]
[622]
[623]
[624]
[625]
[626]
[627]
[628]
[629]
[630]
[631]
[632]
[633]
[634]
[635]
[636]
[637]
[638]
[639]
[640]
[641]
[642]
[643]
[644]
[645]
[646]
[647]
[648]
[649]
[650]
[651]
[652]
[653]
[654]
[655]
[656]
[657]
[658]
[659]
[660]
[661]
[662]
[663]
[664]
[665]
[666]
[667]
[668]
[669]
[670]
[671]
[672]
[673]
[674]
[675]
[676]
[677]
[678]
[679]
[680]
[681]
[682]
[683]
[684]
[685]
[686]
[687]
[688]
[689]
[690]
[691]
[692]
[693]
[694]
[695]
[696]
[697]
[698]
[699]
[700]
[701]
[702]
[703]
[704]
[705]
[706]
[707]
[708]
[709]
[710]
[711]
[712]
[713]
[714]
[715]
[716]
[717]
[718]
[719]
[720]
[721]
[722]
[723]
[724]
[725]
[726]
[727]
[728]
[729]
[730]
[731]
[732]
[733]
[734]
[735]
[736]
[737]
[738]
[739]
[740]
[741]
[742]
[743]
[744]
[745]
[746]
[747]
[748]
[749]
[750]
[751]
[752]
[753]
[754]
[755]
[756]
[757]
[758]
[759]
[760]
[761]
[762]
[763]
[764]
[765]
[766]
[767]
[768]
[769]
[770]
[771]
[772]
[773]
[774]
[775]
[776]
[777]
[778]
[779]
[780]
[781]
[782]
[783]
[784]
[785]
[786]
[787]
[788]
[789]
[790]
[791]
[792]
[793]
[794]
[795]
[796]
[797]
[798]
[799]
[800]
[801]
[802]
[803]
[804]
[805]
[806]
[807]
[808]
[809]
[810]
[811]
[812]
[813]
[814]
[815]
[816]
[817]
[818]
[819]
[820]
[821]
[822]
[823]
[824]
[825]
[826]
[827]
[828]
[829]
[830]
[831]
[832]
[833]
[834]
[835]
[836]
[837]
[838]
[839]
[840]
[841]
[842]
[843]
[844]
[845]
[846]
[847]
[848]
[849]
[850]
[851]
[852]
[853]
[854]
[855]
[856]
[857]
[858]
[859]
[860]
[861]
[862]
[863]
[864]
[865]
[866]
[867]
[868]
[869]
[870]
[871]
[872]
[873]
[874]
[875]
[876]
[877]
[878]
[879]
[880]
[881]
[882]
[883]
[884]
[885]
[886]
[887]
[888]
[889]
[890]
[891]
[892]
[893]
[894]
[895]
[896]
[897]
[898]
[899]
[900]
[901]
[902]
[903]
[904]
[905]
[906]
[907]
[908]
[909]
[910]
[911]
[912]
[913]
[914]
[915]
[916]
[917]
[918]
[919]
[920]
[921]
[922]
[923]
[924]
[925]
[926]
[927]
[928]
[929]
[930]
[931]
[932]
[933]
[934]
[935]
[936]
[937]
[938]
[939]
[940]
[941]
[942]
[943]
[944]
[945]
[946]
[947]
[948]
[949]
[950]
[951]
[952]
[953]
[954]
[955]
[956]
[957]
[958]
[959]
[960]
[961]
[962]
[963]
[964]
[965]
[966]
[967]
[968]
[969]
[970]
[971]
[972]
[973]
[974]
[975]
[976]
[977]
[978]
[979]
[980]
[981]
[982]
[983]
[984]
[985]
[986]
[987]
[988]
[989]
[990]
[991]
[992]
[993]
[994]
[995]
[996]
[997]
[998]
[999]
[1000]
[1001]
[1002]
[1003]
[1004]
[1005]
[1006]
[1007]
[1008]
[1009]
[1010]
[1011]
[1012]
[1013]
[1014]
[1015]
[1016]
[1017]
[1018]
[1019]
[1020]
[1021]
[1022]
[1023]
[1024]
[1025]
[1026]
[1027]
[1028]
[1029]
[1030]
[1031]
[1032]
[1033]
[1034]
[1035]
[1036]
[1037]
[1038]
[1039]
[1040]
[1041]
[1042]
[1043]
[1044]
[1045]
[1046]
[1047]
[1048]
[1049]
[1050]
[1051]
[1052]
[1053]
[1054]
[1055]
[1056]
[1057]
[1058]
[1059]
[1060]
[1061]
[1062]
[1063]
[1064]
[1065]
[1066]
[1067]
[1068]
[1069]
[1070]
[1071]
[1072]
[1073]
[1074]
[1075]
[1076]
[1077]
[1078]
[1079]
[1080]
[1081]
[1082]
[1083]
[1084]
[1085]
[1086]
[1087]
[1088]
[1089]
[1090]
[1091]
[1092]
[1093]
[1094]
[1095]
[1096]
[1097]
[1098]
[1099]
[1100]
[1101]
[1102]
[1103]
[1104]
[1105]
[1106]
[1107]
[1108]
[1109]
[1110]
[1111]
[1112]
[1113]
[1114]
[1115]
[1116]
[1117]
[1118]
[1119]
[1120]
[1121]
[1122]
[1123]
[1124]
[1125]
[1126]
[1127]
[1128]
[1129]
[1130]
[1131]
[1132]
[1133]
[1134]
[1135]
[1136]
[1137]
[1138]
[1139]
[1140]
[1141]
[1142]
[1143]
[1144]
[1145]
[1146]
[1147]
[1148]
[1149]
[1150]
[1151]
[1152]
[1153]
[1154]
[1155]
[1156]
[1157]
[1158]
[1159]
[1160]
[1161]
[1162]
[1163]
[1164]
[1165]
[1166]
[1167]
[1168]
[1169]
[1170]
[1171]
[1172]
[1173]
[1174]
[1175]
[1176]
[1177]
[1178]
[1179]
[1180]
[1181]
[1182]
[1183]
[1184]
[1185]
[1186]
[1187]
[1188]
[1189]
[1190]
[1191]
[1192]
[1193]
[1194]
[1195]
[1196]
[1197]
[1198]
[1199]
[1200]
[1201]
[1202]
[1203]
[1204]
[1205]
[1206]
[1207]
[1208]
[1209]
[1210]
[1211]
[1212]
[1213]
[1214]
[1215]
[1216]
[1217]
[1218]
[1219]
[1220]
[1221]
[1222]
[1223]
[1224]
[1225]
[1226]
[1227]
[1228]
[1229]
[1230]
[1231]
[1232]
[1233]
[1234]
[1235]
[1236]
[1237]
[1238]
[1239]
[1240]
[1241]
[1242]
[1243]
[1244]
[1245]
[1246]
[1247]
[1248]
[1249]
[1250]
[1251]
[1252]
[1253]
[1254]
[1255]
[1256]
[1257]
[1258]
[1259]
[1260]
[1261]
[1262]
[1263]
[1264]
[1265]
[1266]
[1267]
[1268]
[1269]
[1270]
[1271]
[1272]
[1273]
[1274]
[1275]
[1276]
[1277]
[1278]
[1279]
[1280]
[1281]
[1282]
[1283]
[1284]
[1285]
[1286]
[1287]
[1288]
[1289]
[1290]
[1291]
[1292]
[1293]
[1294]
[1295]
[1296]
[1297]
[1298]
[1299]
[1300]
[1301]
[1302]
[1303]
[1304]
[1305]
[1306]
[1307]
[1308]
[1309]
[1310]
[1311]
[1312]
[1313]
[1314]
[1315]
[1316]
[1317]
[1318]
[1319]
[1320]
[1321]
[1322]
[1323]
[1324]
[1325]
[1326]
[1327]
[1328]
[1329]
[1330]
[1331]
[1332]
[1333]
[1334]
[1335]
[1336]
[1337]
[1338]
[1339]
[1340]
[1341]
[1342]
[1343]
[1344]
[1345]
[1346]
[1347]
[1348]
[1349]
[1350]
[1351]
[1352]
[1353]
[1354]
[1355]
[1356]
[1357]
[1358]
[1359]
[1360]
[1361]
[1362]
[1363]
[1364]
[1365]
[1366]
[1367]
[1368]
[1369]
[1370]
[1371]
[1372]
[1373]
[1374]
[1375]
[1376]
[1377]
[1378]
[1379]
[1380]
[1381]
[1382]
[1383]
[1384]
[1385]
[1386]
[1387]
[1388]
[1389]
[1390]
[1391]
[1392]
[1393]
[1394]
[1395]
[1396]
[1397]
[1398]
[1399]
[1400]
[1401]
[1402]
[1403]
[1404]
[1405]
[1406]
[1407]
[1408]
[1409]
[1410]
[1411]
[1412]
[1413]
[1414]
[1415]
[1416]
[1417]
[1418]
[1419]
[1420]
[1421]
[1422]
[1423]
[1424]
[1425]
[1426]
[1427]
[1428]
[1429]
[1430]
[1431]
[1432]
[1433]
[1434]
[1435]
[1436]
[1437]
[1438]
[1439]
[1440]
[1441]
[1442]
[1443]
[1444]
[1445]
[1446]
[1447]
[1448]
[1449]
[1450]
[1451]
[1452]
[1453]
[1454]
[1455]
[1456]
[1457]
[1458]
[1459]
[1460]
[1461]
[1462]
[1463]
[1464]
[1465]
[1466]
[1467]
[1468]
[1469]
[1470]
[1471]
[1472]
[1473]
[1474]
[1475]
[1476]
[1477]
[1478]
[1479]
[1480]
[1481]
[1482]
[1483]
[1484]
[1485]
[1486]
[1487]
[1488]
[1489]
[1490]
[1491]
[1492]
[1493]
[1494]
[1495]
[1496]
[1497]
[1498]
[1499]
[1500]
[1501]
[1502]
[1503]
[1504]
[1505]
[1506]
[1507]
[1508]
[1509]
[1510]
[1511]
[1512]
[1513]
[1514]
[1515]
[1516]
[1517]
[1518]
[1519]
[1520]
[1521]
[1522]
[1523]
[1524]
[1525]
[1526]
[1527]
[1528]
[1529]
[1530]
[1531]
[1532]
[1533]
[1534]
[1535]
[1536]
[1537]
[1538]
[1539]
[1540]
[1541]
[1542]
[1543]
[1544]
[1545]
[1546]
[1547]
[1548]
[1549]
[1550]
[1551]
[1552]
[1553]
[1554]
[1555]
[1556]
[1557]
[1558]
[1559]
[1560]
[1561]
[1562]
[1563]
[1564]
[1565]
[1566]
[1567]
[1568]
[1569]
[1570]
[1571]
[1572]
[1573]
[1574]
[1575]
[1576]
[1577]
[1578]
[1579]
[1580]
[1581]
[1582]
[1583]
[1584]
[1585]
[1586]
[1587]
[1588]
[1589]
[1590]
[1591]
[1592]
[1593]
[1594]
[1595]
[1596]
[1597]
[1598]
[1599]
[1600]
[1601]
[1602]
[1603]
[1604]
[1605]
[1606]
[1607]
[1608]
[1609]
[1610]
[1611]
[1612]
[1613]
[1614]
[1615]
[1616]
[1617]
[1618]
[1619]
[1620]
[1621]
[1622]
[1623]
[1624]
[1625]
[1626]
[1627]
[1628]
[1629]
[1630]
[1631]
[1632]
[1633]
[1634]
[1635]
[1636]
[1637]
[1638]
[1639]
[1640]
[1641]
[1642]
[1643]
[1644]
[1645]
[1646]
[1647]
[1648]
[1649]
[1650]
[1651]
[1652]
[1653]
[1654]
[1655]
[1656]
[1657]
[1658]
[1659]
[1660]
[1661]
[1662]
[1663]
[1664]
[1665]
[1666]
[1667]
[1668]
[1669]
[1670]
[1671]
[1672]
[1673]
[1674]
[1675]
[1676]
[1677]
[1678]
[1679]
[1680]
[1681]
[1682]
[1683]
[1684]
[1685]
[1686]
[1687]
[1688]
[1689]
[1690]
[1691]
[1692]
[1693]
[1694]
[1695]
[1696]
[1697]
[1698]
[1699]
[1700]
[1701]
[1702]
[1703]
[1704]
[1705]
[1706]
[1707]
[1708]
[1709]
[1710]
[1711]
[1712]
[1713]
[1714]
[1715]
[1716]
[1717]
[1718]
[1719]
[1720]
[1721]
[1722]
[1723]
[1724]
[1725]
[1726]
[1727]
[1728]
[1729]
[1730]
[1731]
[1732]
[1733]
[1734]
[1735]
[1736]
[1737]
[1738]
[1739]
[1740]
[1741]
[1742]
[1743]
[1744]
[1745]
[1746]
[1747]
[1748]
[1749]
[1750]
[1751]
[1752]
[1753]
[1754]
[1755]
[1756]
[1757]
[1758]
[1759]
[1760]
[1761]
[1762]
[1763]
[1764]
[1765]
[1766]
[1767]
[1768]
[1769]
[1770]
[1771]
[1772]
[1773]
[1774]
[1775]
[1776]
[1777]
[1778]
[1779]
[1780]
[1781]
[1782]
[1783]
[1784]
[1785]
[1786]
[1787]
[1788]
[1789]
[1790]
[1791]
[1792]
[1793]
[1794]
[1795]
[1796]
[1797]
[1798]
[1799]
[1800]
[1801]
[1802]
[1803]
[1804]
[1805]
[1806]
[1807]
[1808]
[1809]
[1810]
[1811]
[1812]
[1813]
[1814]
[1815]
[1816]
[1817]
[1818]
[1819]
[1820]
[1821]
[1822]
[1823]
[1824]
[1825]
[1826]
[1827]
[1828]
[1829]
[1830]
[1831]
[1832]
[1833]
[1834]
[1835]
[1836]
[1837]
[1838]
[1839]
[1840]
[1841]
[1842]
[1843]
[1844]
[1845]
[1846]
[1847]
[1848]
[1849]
[1850]
[1851]
[1852]
[1853]
[1854]
[1855]
[1856]
[1857]
[1858]
[1859]
[1860]
[1861]
[1862]
[1863]
[1864]
[1865]
[1866]
[1867]
[1868]
[1869]
[1870]
[1871]
[1872]
[1873]
[1874]
[1875]
[1876]
[1877]
[1878]
[1879]
[1880]
[1881]
[1882]
[1883]
[1884]
[1885]
[1886]
[1887]
[1888]
[1889]
[1890]
[1891]
[1892]
[1893]
[1894]
[1895]
[1896]
[1897]
[1898]
[1899]
[1900]
[1901]
[1902]
[1903]
[1904]
[1905]
[1906]
[1907]
[1908]
[1909]
[1910]
[1911]
[1912]
[1913]
[1914]
[1915]
[1916]
[1917]
[1918]
[1919]
[1920]
[1921]
[1922]
[1923]
[1924]
[1925]
[1926]
[1927]
[1928]
[1929]
[1930]
[1931]
[1932]
[1933]
[1934]
[1935]
[1936]
[1937]
[1938]
[1939]
[1940]
[1941]
[1942]
[1943]
[1944]
[1945]
[1946]
[1947]
[1948]
[1949]
[1950]
[1951]
[1952]
[1953]
[1954]
[1955]
[1956]
[1957]
[1958]
[1959]
[1960]
[1961]
[1962]
[1963]
[1964]
[1965]
[1966]
[1967]
[1968]
[1969]
[1970]
[1971]
[1972]
[1973]
[1974]
[1975]
[1976]
[1977]
[1978]
[1979]
[1980]
[1981]
[1982]
[1983]
[1984]
[1985]
[1986]
[1987]
[1988]
[1989]
[1990]
[1991]
[1992]
[1993]
[1994]
[1995]
[1996]
[1997]
[1998]
[1999]
[2000]